Department family,Entity,Date,Expense Type,Expense area,Supplier,Transaction number,AP Amount (�)
Department of Health,NHS Sheffield CCG,31/07/2018,Computer Software/License,CLINICAL LEADS,BARNSLEY HOSPITAL NHS FOUNDATION TRUST,22847808,"70,680.00 "
Department of Health,NHS Sheffield CCG,31/07/2018,External Consultancy Fees,BEREAVEMENT SERVICE,ATTAIN HEALTH MANAGEMENT SERVICES LTD,22873676,"123,600.00 "
Department of Health,NHS Sheffield CCG,31/07/2018,Hcare Srv Rec Fdtn Trust-CQUIN,ACUTE CHILDRENS SERVICES,SHEFFIELD CHILDRENS NHS FOUNDATION TRUST,22873801,"33,781.00 "
Department of Health,NHS Sheffield CCG,31/07/2018,Hcare Srv Rec Fdtn Trust-CQUIN,COMMUNITY SERVICES,SHEFFIELD CHILDRENS NHS FOUNDATION TRUST,22873801,"3,984.00 "
Department of Health,NHS Sheffield CCG,31/07/2018,Hcare Srv Rec Fdtn Trust-Contract Baseline,ACUTE CHILDRENS SERVICES,SHEFFIELD CHILDRENS NHS FOUNDATION TRUST,22873801,"259,425.79 "
Department of Health,NHS Sheffield CCG,31/07/2018,Hcare Srv Rec Fdtn Trust-Contract Baseline,CHILD AND ADOLESCENT MENTAL HEALTH,SHEFFIELD CHILDRENS NHS FOUNDATION TRUST,22873801,"429,451.00 "
Department of Health,NHS Sheffield CCG,31/07/2018,Hcare Srv Rec Fdtn Trust-Contract Baseline,COMMUNITY SERVICES,SHEFFIELD CHILDRENS NHS FOUNDATION TRUST,22873801,"318,731.00 "
Department of Health,NHS Sheffield CCG,31/07/2018,Hcare Srv Rec Fdtn Trust-Contract Baseline,HIGH COST DRUGS,SHEFFIELD CHILDRENS NHS FOUNDATION TRUST,22873801,"62,433.00 "
Department of Health,NHS Sheffield CCG,31/07/2018,Hcare Srv Rec Fdtn Trust-Contract Baseline,MENTAL HEALTH CONTRACTS,SHEFFIELD CHILDRENS NHS FOUNDATION TRUST,22873801,"5,096.00 "
Department of Health,NHS Sheffield CCG,31/07/2018,Hcare Srv Rec Fdtn Trust-Contract Baseline,PLANNED CARE,SHEFFIELD CHILDRENS NHS FOUNDATION TRUST,22873801,"956,921.00 "
Department of Health,NHS Sheffield CCG,31/07/2018,Hcare Srv Rec Fdtn Trust-Contract Baseline,SAFEGUARDING,SHEFFIELD CHILDRENS NHS FOUNDATION TRUST,22873801,"33,664.00 "
Department of Health,NHS Sheffield CCG,31/07/2018,Hcare Srv Rec Fdtn Trust-Contract Baseline,URGENT CARE,SHEFFIELD CHILDRENS NHS FOUNDATION TRUST,22873801,"983,413.00 "
Department of Health,NHS Sheffield CCG,31/07/2018,Hcare Srv Rec Fdtn Trust-Contract Baseline,ACUTE COMMISSIONING,ROTHERHAM NHS FOUNDATION TRUST,22875139,"428,814.00 "
Department of Health,NHS Sheffield CCG,31/07/2018,External Consultancy Fees,BEREAVEMENT SERVICE,ATTAIN HEALTH MANAGEMENT SERVICES LTD,22875205,"(123,600.00)"
Department of Health,NHS Sheffield CCG,31/07/2018,Hcare Srv Rec Fdtn Trust-Contract Baseline,ACUTE COMMISSIONING,BARNSLEY HOSPITAL NHS FOUNDATION TRUST,22875249,"73,344.00 "
Department of Health,NHS Sheffield CCG,31/07/2018,Other Gen Supplies & Srv,CLINICAL LEADS,CHESTERFIELD ROYAL HOSPITAL NHS FOUNDATION TRUST,22875303,"79,000.00 "
Department of Health,NHS Sheffield CCG,31/07/2018,Hcare Srv Rec NHS Trust-Contract Baseline,NHS 111,YORKSHIRE AMBULANCE SERVICE NHS TRUST,22875773,"62,285.00 "
Department of Health,NHS Sheffield CCG,31/07/2018,Hcare Srv Rec NHS Trust-Contract Baseline,AMBULANCE SERVICES,YORKSHIRE AMBULANCE SERVICE NHS TRUST,22875778,"1,509,029.00 "
Department of Health,NHS Sheffield CCG,31/07/2018,Hcare Srv Rec NHS Trust-Contract Baseline,PATIENT TRANSPORT,YORKSHIRE AMBULANCE SERVICE NHS TRUST,22875781,"255,744.52 "
Department of Health,NHS Sheffield CCG,31/07/2018,Hcare Srv Rec NHS Trust-Contract Baseline,NHS 111,YORKSHIRE AMBULANCE SERVICE NHS TRUST,22875789,"114,923.00 "
Department of Health,NHS Sheffield CCG,31/07/2018,Clinical&Medical-Independent Sector,ACUTE COMMISSIONING,BMI HEALTHCARE COLLECTIONS,22875793,"84,881.31 "
Department of Health,NHS Sheffield CCG,31/07/2018,Hcare Srv Rec NHS Trust-Contract Baseline,AMBULANCE SERVICES,YORKSHIRE AMBULANCE SERVICE NHS TRUST,22875795,"124,103.00 "
Department of Health,NHS Sheffield CCG,31/07/2018,Hcare Srv Rec NHS Trust-CQUIN,AMBULANCE SERVICES,YORKSHIRE AMBULANCE SERVICE NHS TRUST,22875799,"34,499.00 "
Department of Health,NHS Sheffield CCG,31/07/2018,Cont Care-Physical Disab (65+),CHC ADULT FULLY FUNDED,ABBEYCARE NURSING,22875841,"51,285.78 "
Department of Health,NHS Sheffield CCG,31/07/2018,Hcare Srv Rec NHS Trust-Contract Baseline,ACUTE COMMISSIONING,LEEDS TEACHING HOSPITALS NHS TRUST,22886156,"44,759.00 "
Department of Health,NHS Sheffield CCG,31/07/2018,Hcare Srv Rec Fdtn Trust-Contract Baseline,ACUTE COMMISSIONING,SHEFFIELD TEACHING HOSPITALS NHS FOUNDATION TRUST,22886195,"338,057.00 "
Department of Health,NHS Sheffield CCG,31/07/2018,Hcare Srv Rec Fdtn Trust-Contract Baseline,ACUTE COMMISSIONING,SHEFFIELD TEACHING HOSPITALS NHS FOUNDATION TRUST,22886196,"27,862,481.00 "
Department of Health,NHS Sheffield CCG,31/07/2018,Hcare Srv Rec Fdtn Trust-Contract Baseline,ACUTE COMMISSIONING,SHEFFIELD TEACHING HOSPITALS NHS FOUNDATION TRUST,22886198,"3,905,387.00 "
Department of Health,NHS Sheffield CCG,31/07/2018,Hcare Srv Rec Fdtn Trust-Contract Baseline,ACUTE COMMISSIONING,SHEFFIELD TEACHING HOSPITALS NHS FOUNDATION TRUST,22886203,"1,278,354.00 "
Department of Health,NHS Sheffield CCG,31/07/2018,Clinical&Medical-Independent Sector,ACUTE COMMISSIONING,BMI HEALTHCARE COLLECTIONS,22886214,"(30,325.67)"
Department of Health,NHS Sheffield CCG,31/07/2018,Cont Care- Adult 100% Fully Funded,CHC ADULT FULLY FUNDED,SOUTH YORKSHIRE HOUSING ASSOCIATION LTD,22886234,"25,500.00 "
Department of Health,NHS Sheffield CCG,31/07/2018,Cont Care-NHSFT-Adult 100% Funded,CHC ADULT FULLY FUNDED,SHEFFIELD HEALTH & SOCIAL CARE NHS FOUNDATION TRUST,22901544,"240,830.02 "
Department of Health,NHS Sheffield CCG,31/07/2018,Charges from CSU,BUSINESS INFORMATICS,NHS NORTH OF ENGLAND CSU,22901545,"30,083.00 "
Department of Health,NHS Sheffield CCG,31/07/2018,C&M-GMS IT Comm Servs -GP Practices,PRIMARY CARE IT,KIER BUSINESS SERVICES LTD,22901547,"103,393.20 "
Department of Health,NHS Sheffield CCG,31/07/2018,FM Computer Contracts,BUSINESS INFORMATICS,KIER BUSINESS SERVICES LTD,22901547,"36,933.60 "
Department of Health,NHS Sheffield CCG,31/07/2018,Cont Care- Adult 100% Fully Funded,CHC ADULT FULLY FUNDED,SOUTH YORKSHIRE HOUSING ASSOCIATION LTD,22901548,"81,249.96 "
Department of Health,NHS Sheffield CCG,31/07/2018,Clinical&Medical-Independent Sector,MENTAL HEALTH CONTRACTS,SUSASH GB LTD T/A EAGLE HOUSE,22916017,"30,092.00 "
Department of Health,NHS Sheffield CCG,31/07/2018,Clinical&Medical-Independent Sector,MENTAL HEALTH CONTRACTS,SOUTH YORKSHIRE HOUSING ASSOCIATION LTD,22916019,"34,435.00 "
Department of Health,NHS Sheffield CCG,31/07/2018,Cont Care-Physical Disab (<65),CHC ADULT FULLY FUNDED,LOXLEY HEALTH CARE LTD,22916032,"57,544.96 "
Department of Health,NHS Sheffield CCG,31/07/2018,Cont Care-Physical Disab (<65),CHC ADULT FULLY FUNDED,WILLOWBECK HEALTH CARE LTD,22916035,"133,993.71 "
Department of Health,NHS Sheffield CCG,31/07/2018,Cont Care-Physical Disab (<65),CHC ADULT FULLY FUNDED,LONGLEY HEALTH CARE LTD,22916036,"95,817.56 "
Department of Health,NHS Sheffield CCG,31/07/2018,Cont Care-Physical Disab (<65),CHC ADULT FULLY FUNDED,SOUTH YORKSHIRE HOUSING ASSOCIATION LTD,22916038,"90,076.47 "
Department of Health,NHS Sheffield CCG,31/07/2018,Clinical&Medical-Othe Public Sector,COMMUNITY SERVICES,SHEFFIELD CITY COUNCIL,22916040,"21,831.00 "
Department of Health,NHS Sheffield CCG,31/07/2018,Clinical&Medical-Othe Public Sector,MENTAL HEALTH SERVICES - COLLABORATIVE COMMISSIONING,SHEFFIELD CITY COUNCIL,22916040,"16,919.00 "
Department of Health,NHS Sheffield CCG,31/07/2018,Clinical&Medical-Othe Public Sector,REABLEMENT,SHEFFIELD CITY COUNCIL,22916040,"160,417.00 "
Department of Health,NHS Sheffield CCG,31/07/2018,Clinical&Medical-Othe Public Sector,SAFEGUARDING,SHEFFIELD CITY COUNCIL,22916040,"15,324.00 "
Department of Health,NHS Sheffield CCG,31/07/2018,Soc Care-Joint H&C Teams/Working,INTERMEDIATE CARE,SHEFFIELD CITY COUNCIL,22916040,"151,447.00 "
Department of Health,NHS Sheffield CCG,31/07/2018,Soc Care-Other Soc Care,COMMUNITY SERVICES,SHEFFIELD CITY COUNCIL,22916040,"1,467,750.00 "
Department of Health,NHS Sheffield CCG,31/07/2018,Soc Care-Support Prim Care,COMMUNITY SERVICES,SHEFFIELD CITY COUNCIL,22916040,"58,000.00 "
Department of Health,NHS Sheffield CCG,31/07/2018,Cont Care-Physical Disab (65+),CHC ADULT FULLY FUNDED,HORIZON CARE HOMES LTD,22916045,"53,142.85 "
Department of Health,NHS Sheffield CCG,31/07/2018,Other Gen Supplies & Srv,BEREAVEMENT SERVICE,CARE SOLUTIONS (YORKSHIRE) LTD,22926171,"29,310.00 "
Department of Health,NHS Sheffield CCG,31/07/2018,C&M-PMS Contract Value,PRC DELEGATED CO-COMMISSIONING,AVENUE MEDICAL CENTRE SHEFFIELD,22951131,"52,734.64 "
Department of Health,NHS Sheffield CCG,31/07/2018,C&M-PMS Out of Hours Opt Outs,PRC DELEGATED CO-COMMISSIONING,AVENUE MEDICAL CENTRE SHEFFIELD,22951131,3.86 
Department of Health,NHS Sheffield CCG,31/07/2018,C&M-PMS Prem Notional Rent,PRC DELEGATED CO-COMMISSIONING,AVENUE MEDICAL CENTRE SHEFFIELD,22951131,"5,546.67 "
Department of Health,NHS Sheffield CCG,31/07/2018,C&M-PMS QOF Aspiration,PRC DELEGATED CO-COMMISSIONING,AVENUE MEDICAL CENTRE SHEFFIELD,22951131,"5,705.45 "
Department of Health,NHS Sheffield CCG,31/07/2018,C&M-PMS Contract Value,PRC DELEGATED CO-COMMISSIONING,ABBEY LANE SURGERY,22951133,"22,536.52 "
Department of Health,NHS Sheffield CCG,31/07/2018,C&M-PMS Prem Notional Rent,PRC DELEGATED CO-COMMISSIONING,ABBEY LANE SURGERY,22951133,"2,122.92 "
Department of Health,NHS Sheffield CCG,31/07/2018,C&M-PMS Prem Rates,PRC DELEGATED CO-COMMISSIONING,ABBEY LANE SURGERY,22951133,744.00 
Department of Health,NHS Sheffield CCG,31/07/2018,C&M-PMS QOF Aspiration,PRC DELEGATED CO-COMMISSIONING,ABBEY LANE SURGERY,22951133,"2,572.92 "
Department of Health,NHS Sheffield CCG,31/07/2018,C&M-PMS Contract Value,PRC DELEGATED CO-COMMISSIONING,BARNSLEY ROAD SURGERY,22951135,"21,519.56 "
Department of Health,NHS Sheffield CCG,31/07/2018,C&M-PMS Prem Notional Rent,PRC DELEGATED CO-COMMISSIONING,BARNSLEY ROAD SURGERY,22951135,"2,652.17 "
Department of Health,NHS Sheffield CCG,31/07/2018,C&M-PMS QOF Aspiration,PRC DELEGATED CO-COMMISSIONING,BARNSLEY ROAD SURGERY,22951135,"2,364.70 "
Department of Health,NHS Sheffield CCG,31/07/2018,C&M-PMS Contract Value,PRC DELEGATED CO-COMMISSIONING,BIRLEY HEALTH CENTRE,22951137,"62,615.29 "
Department of Health,NHS Sheffield CCG,31/07/2018,C&M-PMS Out of Hours Opt Outs,PRC DELEGATED CO-COMMISSIONING,BIRLEY HEALTH CENTRE,22951137,6.56 
Department of Health,NHS Sheffield CCG,31/07/2018,C&M-PMS Prem Notional Rent,PRC DELEGATED CO-COMMISSIONING,BIRLEY HEALTH CENTRE,22951137,"7,600.58 "
Department of Health,NHS Sheffield CCG,31/07/2018,C&M-PMS QOF Aspiration,PRC DELEGATED CO-COMMISSIONING,BIRLEY HEALTH CENTRE,22951137,"7,642.20 "
Department of Health,NHS Sheffield CCG,31/07/2018,C&M-PMS Contract Value,PRC DELEGATED CO-COMMISSIONING,BURNCROSS SURGERY,22951139,"119,768.41 "
Department of Health,NHS Sheffield CCG,31/07/2018,C&M-PMS Cost of Drugs -Prescribing,LOCAL ENHANCED SERVICES,BURNCROSS SURGERY,22951139,20.95 
Department of Health,NHS Sheffield CCG,31/07/2018,C&M-PMS Prem Notional Rent,PRC DELEGATED CO-COMMISSIONING,BURNCROSS SURGERY,22951139,"14,058.33 "
Department of Health,NHS Sheffield CCG,31/07/2018,C&M-PMS Prof fees Prescribing,PRC DELEGATED CO-COMMISSIONING,BURNCROSS SURGERY,22951139,6.90 
Department of Health,NHS Sheffield CCG,31/07/2018,C&M-PMS QOF Aspiration,PRC DELEGATED CO-COMMISSIONING,BURNCROSS SURGERY,22951139,"16,082.74 "
Department of Health,NHS Sheffield CCG,31/07/2018,C&M-PMS Contract Value,PRC DELEGATED CO-COMMISSIONING,BURNGREAVE SURGERY,22951141,"55,557.74 "
Department of Health,NHS Sheffield CCG,31/07/2018,C&M-PMS Prem Notional Rent,PRC DELEGATED CO-COMMISSIONING,BURNGREAVE SURGERY,22951141,"6,622.92 "
Department of Health,NHS Sheffield CCG,31/07/2018,C&M-PMS QOF Aspiration,PRC DELEGATED CO-COMMISSIONING,BURNGREAVE SURGERY,22951141,"4,881.27 "
Department of Health,NHS Sheffield CCG,31/07/2018,C&M-PMS Contract Value,PRC DELEGATED CO-COMMISSIONING,DEEPCAR MEDICAL CENTRE,22951145,"40,032.82 "
Department of Health,NHS Sheffield CCG,31/07/2018,C&M-PMS Prem Healthcentre Rent,PRC DELEGATED CO-COMMISSIONING,DEEPCAR MEDICAL CENTRE,22951145,"32,321.23 "
Department of Health,NHS Sheffield CCG,31/07/2018,C&M-PMS QOF Aspiration,PRC DELEGATED CO-COMMISSIONING,DEEPCAR MEDICAL CENTRE,22951145,"4,182.29 "
Department of Health,NHS Sheffield CCG,31/07/2018,C&M-PMS Contract Value,PRC DELEGATED CO-COMMISSIONING,DOVERCOURT SURGERY,22951147,"70,684.31 "
Department of Health,NHS Sheffield CCG,31/07/2018,C&M-PMS Out of Hours Opt Outs,PRC DELEGATED CO-COMMISSIONING,DOVERCOURT SURGERY,22951147,7.91 
Department of Health,NHS Sheffield CCG,31/07/2018,C&M-PMS PCO Other,PRC DELEGATED CO-COMMISSIONING,DOVERCOURT SURGERY,22951147,584.56 
Department of Health,NHS Sheffield CCG,31/07/2018,C&M-PMS Prem Actual Rent,PRC DELEGATED CO-COMMISSIONING,DOVERCOURT SURGERY,22951147,"12,400.00 "
Department of Health,NHS Sheffield CCG,31/07/2018,C&M-PMS Prem Notional Rent,PRC DELEGATED CO-COMMISSIONING,DOVERCOURT SURGERY,22951147,"1,708.34 "
Department of Health,NHS Sheffield CCG,31/07/2018,C&M-PMS Prem Rates,PRC DELEGATED CO-COMMISSIONING,DOVERCOURT SURGERY,22951147,"21,791.00 "
Department of Health,NHS Sheffield CCG,31/07/2018,C&M-PMS QOF Aspiration,PRC DELEGATED CO-COMMISSIONING,DOVERCOURT SURGERY,22951147,"7,443.07 "
Department of Health,NHS Sheffield CCG,31/07/2018,C&M-PMS Contract Value,PRC DELEGATED CO-COMMISSIONING,DR MEHROTRA & PARTNER,22951149,"27,417.44 "
Department of Health,NHS Sheffield CCG,31/07/2018,C&M-PMS DES Learn Dsblty Hlth Chk,PRC DELEGATED CO-COMMISSIONING,DR MEHROTRA & PARTNER,22951149,840.00 
Department of Health,NHS Sheffield CCG,31/07/2018,C&M-PMS Prem Actual Rent,PRC DELEGATED CO-COMMISSIONING,DR MEHROTRA & PARTNER,22951149,"2,650.00 "
Department of Health,NHS Sheffield CCG,31/07/2018,C&M-PMS Prem Notional Rent,PRC DELEGATED CO-COMMISSIONING,DR MEHROTRA & PARTNER,22951149,"5,157.29 "
Department of Health,NHS Sheffield CCG,31/07/2018,C&M-PMS Prem Rates,PRC DELEGATED CO-COMMISSIONING,DR MEHROTRA & PARTNER,22951149,"1,463.00 "
Department of Health,NHS Sheffield CCG,31/07/2018,C&M-PMS QOF Aspiration,PRC DELEGATED CO-COMMISSIONING,DR MEHROTRA & PARTNER,22951149,"3,078.44 "
Department of Health,NHS Sheffield CCG,31/07/2018,C&M-PMS Contract Value,PRC DELEGATED CO-COMMISSIONING,DR MILNER & PARTNERS,22951151,"73,872.03 "
Department of Health,NHS Sheffield CCG,31/07/2018,C&M-PMS Out of Hours Opt Outs,PRC DELEGATED CO-COMMISSIONING,DR MILNER & PARTNERS,22951151,9.66 
Department of Health,NHS Sheffield CCG,31/07/2018,C&M-PMS Prem Actual Rent,PRC DELEGATED CO-COMMISSIONING,DR MILNER & PARTNERS,22951151,"11,382.00 "
Department of Health,NHS Sheffield CCG,31/07/2018,C&M-PMS Prem Notional Rent,PRC DELEGATED CO-COMMISSIONING,DR MILNER & PARTNERS,22951151,"4,462.42 "
Department of Health,NHS Sheffield CCG,31/07/2018,C&M-PMS Prem Rates,PRC DELEGATED CO-COMMISSIONING,DR MILNER & PARTNERS,22951151,"2,464.00 "
Department of Health,NHS Sheffield CCG,31/07/2018,C&M-PMS Prem Water Rates,PRC DELEGATED CO-COMMISSIONING,DR MILNER & PARTNERS,22951151,729.30 
Department of Health,NHS Sheffield CCG,31/07/2018,C&M-PMS QOF Aspiration,PRC DELEGATED CO-COMMISSIONING,DR MILNER & PARTNERS,22951151,"6,553.23 "
Department of Health,NHS Sheffield CCG,31/07/2018,C&M-PMS Contract Value,PRC DELEGATED CO-COMMISSIONING,DUNNINC ROAD SURGERY,22951153,"23,485.97 "
Department of Health,NHS Sheffield CCG,31/07/2018,C&M-PMS PCO Other,PRC DELEGATED CO-COMMISSIONING,DUNNINC ROAD SURGERY,22951153,"2,215.00 "
Department of Health,NHS Sheffield CCG,31/07/2018,C&M-PMS Prem Notional Rent,PRC DELEGATED CO-COMMISSIONING,DUNNINC ROAD SURGERY,22951153,"1,664.58 "
Department of Health,NHS Sheffield CCG,31/07/2018,C&M-PMS QOF Aspiration,PRC DELEGATED CO-COMMISSIONING,DUNNINC ROAD SURGERY,22951153,"2,554.49 "
Department of Health,NHS Sheffield CCG,31/07/2018,C&M-PMS Contract Value,PRC DELEGATED CO-COMMISSIONING,DYKES HALL MEDICAL CENTRE,22951155,"71,778.59 "
Department of Health,NHS Sheffield CCG,31/07/2018,C&M-PMS Out of Hours Opt Outs,PRC DELEGATED CO-COMMISSIONING,DYKES HALL MEDICAL CENTRE,22951155,12.02 
Department of Health,NHS Sheffield CCG,31/07/2018,C&M-PMS Prem Notional Rent,PRC DELEGATED CO-COMMISSIONING,DYKES HALL MEDICAL CENTRE,22951155,"5,300.83 "
Department of Health,NHS Sheffield CCG,31/07/2018,C&M-PMS QOF Aspiration,PRC DELEGATED CO-COMMISSIONING,DYKES HALL MEDICAL CENTRE,22951155,"8,079.17 "
Department of Health,NHS Sheffield CCG,31/07/2018,C&M-PMS Contract Value,PRC DELEGATED CO-COMMISSIONING,EAST BANK MEDICAL CENTRE,22951157,"45,558.73 "
Department of Health,NHS Sheffield CCG,31/07/2018,C&M-PMS PCO Other,PRC DELEGATED CO-COMMISSIONING,EAST BANK MEDICAL CENTRE,22951157,"3,706.00 "
Department of Health,NHS Sheffield CCG,31/07/2018,C&M-PMS Prem Notional Rent,PRC DELEGATED CO-COMMISSIONING,EAST BANK MEDICAL CENTRE,22951157,"12,100.01 "
Department of Health,NHS Sheffield CCG,31/07/2018,C&M-PMS Prem Rates,PRC DELEGATED CO-COMMISSIONING,EAST BANK MEDICAL CENTRE,22951157,"2,729.00 "
Department of Health,NHS Sheffield CCG,31/07/2018,C&M-PMS QOF Aspiration,PRC DELEGATED CO-COMMISSIONING,EAST BANK MEDICAL CENTRE,22951157,"4,881.64 "
Department of Health,NHS Sheffield CCG,31/07/2018,C&M-PMS Contract Value,PRC DELEGATED CO-COMMISSIONING,FIRTH PARK SURGERY,22951159,"72,405.62 "
Department of Health,NHS Sheffield CCG,31/07/2018,C&M-PMS PCO Locum Adop/Pat/Mat,PRC DELEGATED CO-COMMISSIONING,FIRTH PARK SURGERY,22951159,"2,484.72 "
Department of Health,NHS Sheffield CCG,31/07/2018,C&M-PMS Prem Notional Rent,PRC DELEGATED CO-COMMISSIONING,FIRTH PARK SURGERY,22951159,"4,500.00 "
Department of Health,NHS Sheffield CCG,31/07/2018,C&M-PMS Prem Rates,PRC DELEGATED CO-COMMISSIONING,FIRTH PARK SURGERY,22951159,"1,330.00 "
Department of Health,NHS Sheffield CCG,31/07/2018,C&M-PMS QOF Aspiration,PRC DELEGATED CO-COMMISSIONING,FIRTH PARK SURGERY,22951159,"7,359.15 "
Department of Health,NHS Sheffield CCG,31/07/2018,C&M-PMS Contract Value,PRC DELEGATED CO-COMMISSIONING,FALKLAND HOUSE,22951161,"25,471.58 "
Department of Health,NHS Sheffield CCG,31/07/2018,C&M-PMS Out of Hours Opt Outs,PRC DELEGATED CO-COMMISSIONING,FALKLAND HOUSE,22951161,5.42 
Department of Health,NHS Sheffield CCG,31/07/2018,C&M-PMS PCO Other,PRC DELEGATED CO-COMMISSIONING,FALKLAND HOUSE,22951161,307.67 
Department of Health,NHS Sheffield CCG,31/07/2018,C&M-PMS Prem Notional Rent,PRC DELEGATED CO-COMMISSIONING,FALKLAND HOUSE,22951161,"2,060.36 "
Department of Health,NHS Sheffield CCG,31/07/2018,C&M-PMS Prem Rates,PRC DELEGATED CO-COMMISSIONING,FALKLAND HOUSE,22951161,756.00 
Department of Health,NHS Sheffield CCG,31/07/2018,C&M-PMS Prem Water Rates,PRC DELEGATED CO-COMMISSIONING,FALKLAND HOUSE,22951161,193.05 
Department of Health,NHS Sheffield CCG,31/07/2018,C&M-PMS QOF Aspiration,PRC DELEGATED CO-COMMISSIONING,FALKLAND HOUSE,22951161,"2,902.49 "
Department of Health,NHS Sheffield CCG,31/07/2018,C&M-PMS Contract Value,PRC DELEGATED CO-COMMISSIONING,GLEADLESS MEDICAL CENTRE,22951163,"68,327.98 "
Department of Health,NHS Sheffield CCG,31/07/2018,C&M-PMS Out of Hours Opt Outs,PRC DELEGATED CO-COMMISSIONING,GLEADLESS MEDICAL CENTRE,22951163,16.70 
Department of Health,NHS Sheffield CCG,31/07/2018,C&M-PMS PCO Other,PRC DELEGATED CO-COMMISSIONING,GLEADLESS MEDICAL CENTRE,22951163,619.11 
Department of Health,NHS Sheffield CCG,31/07/2018,C&M-PMS Prem Notional Rent,PRC DELEGATED CO-COMMISSIONING,GLEADLESS MEDICAL CENTRE,22951163,"6,750.00 "
Department of Health,NHS Sheffield CCG,31/07/2018,C&M-PMS Prem Rates,PRC DELEGATED CO-COMMISSIONING,GLEADLESS MEDICAL CENTRE,22951163,"1,564.00 "
Department of Health,NHS Sheffield CCG,31/07/2018,C&M-PMS QOF Aspiration,PRC DELEGATED CO-COMMISSIONING,GLEADLESS MEDICAL CENTRE,22951163,"7,712.98 "
Department of Health,NHS Sheffield CCG,31/07/2018,C&M-PMS Contract Value,PRC DELEGATED CO-COMMISSIONING,JAUNTY SPRINGS HEALTH CENTRE,22951166,"29,303.08 "
Department of Health,NHS Sheffield CCG,31/07/2018,C&M-PMS PCO Other,PRC DELEGATED CO-COMMISSIONING,JAUNTY SPRINGS HEALTH CENTRE,22951166,284.89 
Department of Health,NHS Sheffield CCG,31/07/2018,C&M-PMS Prem Notional Rent,PRC DELEGATED CO-COMMISSIONING,JAUNTY SPRINGS HEALTH CENTRE,22951166,"3,208.33 "
Department of Health,NHS Sheffield CCG,31/07/2018,C&M-PMS Prem Rates,PRC DELEGATED CO-COMMISSIONING,JAUNTY SPRINGS HEALTH CENTRE,22951166,631.00 
Department of Health,NHS Sheffield CCG,31/07/2018,C&M-PMS QOF Aspiration,PRC DELEGATED CO-COMMISSIONING,JAUNTY SPRINGS HEALTH CENTRE,22951166,"3,861.25 "
Department of Health,NHS Sheffield CCG,31/07/2018,C&M-PMS Contract Value,PRC DELEGATED CO-COMMISSIONING,MEADOWHEAD GROUP PRACTICE,22951168,"76,447.76 "
Department of Health,NHS Sheffield CCG,31/07/2018,C&M-PMS Out of Hours Opt Outs,PRC DELEGATED CO-COMMISSIONING,MEADOWHEAD GROUP PRACTICE,22951168,4.52 
Department of Health,NHS Sheffield CCG,31/07/2018,C&M-PMS Prem Cost Rent,PRC DELEGATED CO-COMMISSIONING,MEADOWHEAD GROUP PRACTICE,22951168,"3,647.42 "
Department of Health,NHS Sheffield CCG,31/07/2018,C&M-PMS Prem Notional Rent,PRC DELEGATED CO-COMMISSIONING,MEADOWHEAD GROUP PRACTICE,22951168,"3,358.33 "
Department of Health,NHS Sheffield CCG,31/07/2018,C&M-PMS Prem Rates,PRC DELEGATED CO-COMMISSIONING,MEADOWHEAD GROUP PRACTICE,22951168,"1,788.00 "
Department of Health,NHS Sheffield CCG,31/07/2018,C&M-PMS QOF Aspiration,PRC DELEGATED CO-COMMISSIONING,MEADOWHEAD GROUP PRACTICE,22951168,"9,134.83 "
Department of Health,NHS Sheffield CCG,31/07/2018,C&M-PMS Contract Value,PRC DELEGATED CO-COMMISSIONING,MANCHESTER ROAD SURGERY SHEFFIELD,22951170,"31,708.81 "
Department of Health,NHS Sheffield CCG,31/07/2018,C&M-PMS Prem Cost Rent,PRC DELEGATED CO-COMMISSIONING,MANCHESTER ROAD SURGERY SHEFFIELD,22951170,"3,472.17 "
Department of Health,NHS Sheffield CCG,31/07/2018,C&M-PMS Prem Notional Rent,PRC DELEGATED CO-COMMISSIONING,MANCHESTER ROAD SURGERY SHEFFIELD,22951170,442.92 
Department of Health,NHS Sheffield CCG,31/07/2018,C&M-PMS Prem Rates,PRC DELEGATED CO-COMMISSIONING,MANCHESTER ROAD SURGERY SHEFFIELD,22951170,948.00 
Department of Health,NHS Sheffield CCG,31/07/2018,C&M-PMS QOF Aspiration,PRC DELEGATED CO-COMMISSIONING,MANCHESTER ROAD SURGERY SHEFFIELD,22951170,"4,036.85 "
Department of Health,NHS Sheffield CCG,31/07/2018,C&M-PMS Contract Value,PRC DELEGATED CO-COMMISSIONING,MOSBOROUGH HEALTH CENTRE,22951172,"47,037.47 "
Department of Health,NHS Sheffield CCG,31/07/2018,C&M-PMS PCO Other,PRC DELEGATED CO-COMMISSIONING,MOSBOROUGH HEALTH CENTRE,22951172,471.11 
Department of Health,NHS Sheffield CCG,31/07/2018,C&M-PMS Prem Notional Rent,PRC DELEGATED CO-COMMISSIONING,MOSBOROUGH HEALTH CENTRE,22951172,"4,091.67 "
Department of Health,NHS Sheffield CCG,31/07/2018,C&M-PMS Prem Rates,PRC DELEGATED CO-COMMISSIONING,MOSBOROUGH HEALTH CENTRE,22951172,891.00 
Department of Health,NHS Sheffield CCG,31/07/2018,C&M-PMS QOF Aspiration,PRC DELEGATED CO-COMMISSIONING,MOSBOROUGH HEALTH CENTRE,22951172,"5,763.82 "
Department of Health,NHS Sheffield CCG,31/07/2018,C&M-PMS Contract Value,PRC DELEGATED CO-COMMISSIONING,NETHERGREEN SURGERY,22951174,"61,498.26 "
Department of Health,NHS Sheffield CCG,31/07/2018,C&M-PMS Prem Cost Rent,PRC DELEGATED CO-COMMISSIONING,NETHERGREEN SURGERY,22951174,"5,057.33 "
Department of Health,NHS Sheffield CCG,31/07/2018,C&M-PMS Prem Rates,PRC DELEGATED CO-COMMISSIONING,NETHERGREEN SURGERY,22951174,"1,236.00 "
Department of Health,NHS Sheffield CCG,31/07/2018,C&M-PMS QOF Aspiration,PRC DELEGATED CO-COMMISSIONING,NETHERGREEN SURGERY,22951174,"6,267.38 "
Department of Health,NHS Sheffield CCG,31/07/2018,C&M-PMS Contract Value,PRC DELEGATED CO-COMMISSIONING,OWLTHORPE MEDICAL CENTRE,22951176,"32,998.07 "
Department of Health,NHS Sheffield CCG,31/07/2018,C&M-PMS Out of Hours Opt Outs,PRC DELEGATED CO-COMMISSIONING,OWLTHORPE MEDICAL CENTRE,22951176,4.14 
Department of Health,NHS Sheffield CCG,31/07/2018,C&M-PMS Prem Actual Rent,PRC DELEGATED CO-COMMISSIONING,OWLTHORPE MEDICAL CENTRE,22951176,"7,539.58 "
Department of Health,NHS Sheffield CCG,31/07/2018,C&M-PMS Prem Water Rates,PRC DELEGATED CO-COMMISSIONING,OWLTHORPE MEDICAL CENTRE,22951176,128.66 
Department of Health,NHS Sheffield CCG,31/07/2018,C&M-PMS QOF Aspiration,PRC DELEGATED CO-COMMISSIONING,OWLTHORPE MEDICAL CENTRE,22951176,"4,022.05 "
Department of Health,NHS Sheffield CCG,31/07/2018,C&M-PMS Contract Value,PRC DELEGATED CO-COMMISSIONING,PAGE HALL MEDICAL CENTRE,22951178,"55,139.27 "
Department of Health,NHS Sheffield CCG,31/07/2018,C&M-PMS Prem Notional Rent,PRC DELEGATED CO-COMMISSIONING,PAGE HALL MEDICAL CENTRE,22951178,"4,833.33 "
Department of Health,NHS Sheffield CCG,31/07/2018,C&M-PMS QOF Aspiration,PRC DELEGATED CO-COMMISSIONING,PAGE HALL MEDICAL CENTRE,22951178,"4,906.36 "
Department of Health,NHS Sheffield CCG,31/07/2018,C&M-PMS Contract Value,PRC DELEGATED CO-COMMISSIONING,PITSMOOR SURGERY,22951179,"76,146.89 "
Department of Health,NHS Sheffield CCG,31/07/2018,C&M-PMS Out of Hours Opt Outs,PRC DELEGATED CO-COMMISSIONING,PITSMOOR SURGERY,22951179,2.25 
Department of Health,NHS Sheffield CCG,31/07/2018,C&M-PMS PCO Other,PRC DELEGATED CO-COMMISSIONING,PITSMOOR SURGERY,22951179,"5,855.00 "
Department of Health,NHS Sheffield CCG,31/07/2018,C&M-PMS Prem Notional Rent,PRC DELEGATED CO-COMMISSIONING,PITSMOOR SURGERY,22951179,"9,650.00 "
Department of Health,NHS Sheffield CCG,31/07/2018,C&M-PMS Prem Rates,PRC DELEGATED CO-COMMISSIONING,PITSMOOR SURGERY,22951179,"6,464.90 "
Department of Health,NHS Sheffield CCG,31/07/2018,C&M-PMS Prem Water Rates,PRC DELEGATED CO-COMMISSIONING,PITSMOOR SURGERY,22951179,342.58 
Department of Health,NHS Sheffield CCG,31/07/2018,C&M-PMS QOF Aspiration,PRC DELEGATED CO-COMMISSIONING,PITSMOOR SURGERY,22951179,"7,079.26 "
Department of Health,NHS Sheffield CCG,31/07/2018,C&M-PMS Contract Value,PRC DELEGATED CO-COMMISSIONING,PORTER BROOK MEDICAL CENTRE,22951180,"(1,953.32)"
Department of Health,NHS Sheffield CCG,31/07/2018,C&M-PMS GP Statutory Levy,PRC DELEGATED CO-COMMISSIONING,PORTER BROOK MEDICAL CENTRE,22951180,(831.27)
Department of Health,NHS Sheffield CCG,31/07/2018,C&M-PMS Out of Hours Opt Outs,PRC DELEGATED CO-COMMISSIONING,PORTER BROOK MEDICAL CENTRE,22951180,"(7,609.06)"
Department of Health,NHS Sheffield CCG,31/07/2018,C&M-PMS Voluntary Levy,PRC DELEGATED CO-COMMISSIONING,PORTER BROOK MEDICAL CENTRE,22951180,(138.55)
Department of Health,NHS Sheffield CCG,31/07/2018,C&M-PMS Contract Value,PRC DELEGATED CO-COMMISSIONING,PORTER BROOK MEDICAL CENTRE,22951181,"162,370.60 "
Department of Health,NHS Sheffield CCG,31/07/2018,C&M-PMS Out of Hours Opt Outs,PRC DELEGATED CO-COMMISSIONING,PORTER BROOK MEDICAL CENTRE,22951181,96.08 
Department of Health,NHS Sheffield CCG,31/07/2018,C&M-PMS PCO Other,PRC DELEGATED CO-COMMISSIONING,PORTER BROOK MEDICAL CENTRE,22951181,"1,902.44 "
Department of Health,NHS Sheffield CCG,31/07/2018,C&M-PMS Prem Actual Rent,PRC DELEGATED CO-COMMISSIONING,PORTER BROOK MEDICAL CENTRE,22951181,"1,333.33 "
Department of Health,NHS Sheffield CCG,31/07/2018,C&M-PMS Prem Notional Rent,PRC DELEGATED CO-COMMISSIONING,PORTER BROOK MEDICAL CENTRE,22951181,"9,666.67 "
Department of Health,NHS Sheffield CCG,31/07/2018,C&M-PMS Prem Rates,PRC DELEGATED CO-COMMISSIONING,PORTER BROOK MEDICAL CENTRE,22951181,"2,315.00 "
Department of Health,NHS Sheffield CCG,31/07/2018,C&M-PMS QOF Aspiration,PRC DELEGATED CO-COMMISSIONING,PORTER BROOK MEDICAL CENTRE,22951181,"8,562.06 "
Department of Health,NHS Sheffield CCG,31/07/2018,C&M-PMS Contract Value,PRC DELEGATED CO-COMMISSIONING,RICHMOND MEDICAL CENTRE,22951183,"64,845.52 "
Department of Health,NHS Sheffield CCG,31/07/2018,C&M-PMS PCO Other,PRC DELEGATED CO-COMMISSIONING,RICHMOND MEDICAL CENTRE,22951183,617.78 
Department of Health,NHS Sheffield CCG,31/07/2018,C&M-PMS Prem Notional Rent,PRC DELEGATED CO-COMMISSIONING,RICHMOND MEDICAL CENTRE,22951183,"4,731.00 "
Department of Health,NHS Sheffield CCG,31/07/2018,C&M-PMS Prem Rates,PRC DELEGATED CO-COMMISSIONING,RICHMOND MEDICAL CENTRE,22951183,"1,425.00 "
Department of Health,NHS Sheffield CCG,31/07/2018,C&M-PMS QOF Aspiration,PRC DELEGATED CO-COMMISSIONING,RICHMOND MEDICAL CENTRE,22951183,"8,188.48 "
Department of Health,NHS Sheffield CCG,31/07/2018,C&M-PMS Contract Value,PRC DELEGATED CO-COMMISSIONING,RUSTLINGS ROAD MEDICAL CENTRE,22951187,"27,152.85 "
Department of Health,NHS Sheffield CCG,31/07/2018,C&M-PMS PCO Other,PRC DELEGATED CO-COMMISSIONING,RUSTLINGS ROAD MEDICAL CENTRE,22951187,347.11 
Department of Health,NHS Sheffield CCG,31/07/2018,C&M-PMS Prem Notional Rent,PRC DELEGATED CO-COMMISSIONING,RUSTLINGS ROAD MEDICAL CENTRE,22951187,"1,167.92 "
Department of Health,NHS Sheffield CCG,31/07/2018,C&M-PMS QOF Aspiration,PRC DELEGATED CO-COMMISSIONING,RUSTLINGS ROAD MEDICAL CENTRE,22951187,"2,389.45 "
Department of Health,NHS Sheffield CCG,31/07/2018,C&M-PMS Contract Value,PRC DELEGATED CO-COMMISSIONING,SLOAN MEDICAL CENTRE,22951189,"92,126.98 "
Department of Health,NHS Sheffield CCG,31/07/2018,C&M-PMS PCO Other,PRC DELEGATED CO-COMMISSIONING,SLOAN MEDICAL CENTRE,22951189,879.11 
Department of Health,NHS Sheffield CCG,31/07/2018,C&M-PMS Prem Actual Rent,PRC DELEGATED CO-COMMISSIONING,SLOAN MEDICAL CENTRE,22951189,"15,535.83 "
Department of Health,NHS Sheffield CCG,31/07/2018,C&M-PMS Prem Notional Rent,PRC DELEGATED CO-COMMISSIONING,SLOAN MEDICAL CENTRE,22951189,608.33 
Department of Health,NHS Sheffield CCG,31/07/2018,C&M-PMS Prem Rates,PRC DELEGATED CO-COMMISSIONING,SLOAN MEDICAL CENTRE,22951189,"3,083.00 "
Department of Health,NHS Sheffield CCG,31/07/2018,C&M-PMS QOF Aspiration,PRC DELEGATED CO-COMMISSIONING,SLOAN MEDICAL CENTRE,22951189,"9,952.56 "
Department of Health,NHS Sheffield CCG,31/07/2018,C&M-PMS Contract Value,PRC DELEGATED CO-COMMISSIONING,SOTHALL MEDICAL CENTRE,22951190,"70,160.45 "
Department of Health,NHS Sheffield CCG,31/07/2018,C&M-PMS Prem Notional Rent,PRC DELEGATED CO-COMMISSIONING,SOTHALL MEDICAL CENTRE,22951190,"5,116.67 "
Department of Health,NHS Sheffield CCG,31/07/2018,C&M-PMS Prem Rates,PRC DELEGATED CO-COMMISSIONING,SOTHALL MEDICAL CENTRE,22951190,"1,251.00 "
Department of Health,NHS Sheffield CCG,31/07/2018,C&M-PMS QOF Aspiration,PRC DELEGATED CO-COMMISSIONING,SOTHALL MEDICAL CENTRE,22951190,"8,691.35 "
Department of Health,NHS Sheffield CCG,31/07/2018,C&M-PMS Contract Value,PRC DELEGATED CO-COMMISSIONING,SOUTHEY GREEN MEDICAL CENTRE,22951192,"25,880.34 "
Department of Health,NHS Sheffield CCG,31/07/2018,C&M-PMS Out of Hours Opt Outs,PRC DELEGATED CO-COMMISSIONING,SOUTHEY GREEN MEDICAL CENTRE,22951192,16.61 
Department of Health,NHS Sheffield CCG,31/07/2018,C&M-PMS Prem Notional Rent,PRC DELEGATED CO-COMMISSIONING,SOUTHEY GREEN MEDICAL CENTRE,22951192,"3,362.50 "
Department of Health,NHS Sheffield CCG,31/07/2018,C&M-PMS Prem Rates,PRC DELEGATED CO-COMMISSIONING,SOUTHEY GREEN MEDICAL CENTRE,22951192,"14,288.75 "
Department of Health,NHS Sheffield CCG,31/07/2018,C&M-PMS QOF Aspiration,PRC DELEGATED CO-COMMISSIONING,SOUTHEY GREEN MEDICAL CENTRE,22951192,"2,539.36 "
Department of Health,NHS Sheffield CCG,31/07/2018,C&M-PMS Contract Value,PRC DELEGATED CO-COMMISSIONING,UNIVERSITY HEALTH SERVICE,22951196,"158,165.14 "
Department of Health,NHS Sheffield CCG,31/07/2018,C&M-PMS Out of Hours Opt Outs,PRC DELEGATED CO-COMMISSIONING,UNIVERSITY HEALTH SERVICE,22951196,206.44 
Department of Health,NHS Sheffield CCG,31/07/2018,C&M-PMS Prem Notional Rent,PRC DELEGATED CO-COMMISSIONING,UNIVERSITY HEALTH SERVICE,22951196,"15,833.33 "
Department of Health,NHS Sheffield CCG,31/07/2018,C&M-PMS Prem Water Rates,PRC DELEGATED CO-COMMISSIONING,UNIVERSITY HEALTH SERVICE,22951196,933.50 
Department of Health,NHS Sheffield CCG,31/07/2018,C&M-PMS QOF Aspiration,PRC DELEGATED CO-COMMISSIONING,UNIVERSITY HEALTH SERVICE,22951196,"3,984.72 "
Department of Health,NHS Sheffield CCG,31/07/2018,C&M-PMS Contract Value,PRC DELEGATED CO-COMMISSIONING,UPWELL STREET SURGERY,22951198,"36,778.85 "
Department of Health,NHS Sheffield CCG,31/07/2018,C&M-PMS Prem Notional Rent,PRC DELEGATED CO-COMMISSIONING,UPWELL STREET SURGERY,22951198,"8,137.50 "
Department of Health,NHS Sheffield CCG,31/07/2018,C&M-PMS Prem Rates,PRC DELEGATED CO-COMMISSIONING,UPWELL STREET SURGERY,22951198,"1,265.00 "
Department of Health,NHS Sheffield CCG,31/07/2018,C&M-PMS QOF Aspiration,PRC DELEGATED CO-COMMISSIONING,UPWELL STREET SURGERY,22951198,"4,294.99 "
Department of Health,NHS Sheffield CCG,31/07/2018,C&M-PMS Contract Value,PRC DELEGATED CO-COMMISSIONING,VALLEY MEDICAL CENTRE,22951200,"77,153.32 "
Department of Health,NHS Sheffield CCG,31/07/2018,C&M-PMS QOF Aspiration,PRC DELEGATED CO-COMMISSIONING,VALLEY MEDICAL CENTRE,22951200,"8,516.48 "
Department of Health,NHS Sheffield CCG,31/07/2018,C&M-PMS Contract Value,PRC DELEGATED CO-COMMISSIONING,WOODHOUSE HEALTH CENTRE,22951202,"98,270.76 "
Department of Health,NHS Sheffield CCG,31/07/2018,C&M-PMS Prem Notional Rent,PRC DELEGATED CO-COMMISSIONING,WOODHOUSE HEALTH CENTRE,22951202,"6,338.58 "
Department of Health,NHS Sheffield CCG,31/07/2018,C&M-PMS QOF Aspiration,PRC DELEGATED CO-COMMISSIONING,WOODHOUSE HEALTH CENTRE,22951202,"13,695.89 "
Department of Health,NHS Sheffield CCG,31/07/2018,C&M-PMS Contract Value,PRC DELEGATED CO-COMMISSIONING,WINCOBANK MEDICAL CENTRE,22951204,"60,970.28 "
Department of Health,NHS Sheffield CCG,31/07/2018,C&M-PMS Out of Hours Opt Outs,PRC DELEGATED CO-COMMISSIONING,WINCOBANK MEDICAL CENTRE,22951204,0.35 
Department of Health,NHS Sheffield CCG,31/07/2018,C&M-PMS Prem Healthcentre Rent,PRC DELEGATED CO-COMMISSIONING,WINCOBANK MEDICAL CENTRE,22951204,"99,520.41 "
Department of Health,NHS Sheffield CCG,31/07/2018,C&M-PMS Prem Rates,PRC DELEGATED CO-COMMISSIONING,WINCOBANK MEDICAL CENTRE,22951204,"12,559.61 "
Department of Health,NHS Sheffield CCG,31/07/2018,C&M-PMS QOF Aspiration,PRC DELEGATED CO-COMMISSIONING,WINCOBANK MEDICAL CENTRE,22951204,"6,309.99 "
Department of Health,NHS Sheffield CCG,31/07/2018,C&M-PMS Contract Value,PRC DELEGATED CO-COMMISSIONING,FOXHILL MEDICAL CENTRE SHEFFIELD,22951206,"51,291.52 "
Department of Health,NHS Sheffield CCG,31/07/2018,C&M-PMS PCO Other,PRC DELEGATED CO-COMMISSIONING,FOXHILL MEDICAL CENTRE SHEFFIELD,22951206,893.68 
Department of Health,NHS Sheffield CCG,31/07/2018,C&M-PMS Prem Healthcentre Rent,PRC DELEGATED CO-COMMISSIONING,FOXHILL MEDICAL CENTRE SHEFFIELD,22951206,"48,649.86 "
Department of Health,NHS Sheffield CCG,31/07/2018,C&M-PMS QOF Aspiration,PRC DELEGATED CO-COMMISSIONING,FOXHILL MEDICAL CENTRE SHEFFIELD,22951206,"5,580.51 "
Department of Health,NHS Sheffield CCG,31/07/2018,C&M-APMS Contract Value,PRC DELEGATED CO-COMMISSIONING,SHEFFIELD HEALTH & SOCIAL CARE NHS FOUNDATION TRUST,22961633,"118,427.00 "
Department of Health,NHS Sheffield CCG,31/07/2018,C&M-APMS OOH Opt Outs,PRC DELEGATED CO-COMMISSIONING,SHEFFIELD HEALTH & SOCIAL CARE NHS FOUNDATION TRUST,22961633,4.91 
Department of Health,NHS Sheffield CCG,31/07/2018,C&M-APMS Prem Actual Rent,PRC DELEGATED CO-COMMISSIONING,SHEFFIELD HEALTH & SOCIAL CARE NHS FOUNDATION TRUST,22961633,"5,169.68 "
Department of Health,NHS Sheffield CCG,31/07/2018,C&M-APMS Prem Healthcentre Rent,PRC DELEGATED CO-COMMISSIONING,SHEFFIELD HEALTH & SOCIAL CARE NHS FOUNDATION TRUST,22961633,"63,406.12 "
Department of Health,NHS Sheffield CCG,31/07/2018,C&M-APMS Prem Notional Rent,PRC DELEGATED CO-COMMISSIONING,SHEFFIELD HEALTH & SOCIAL CARE NHS FOUNDATION TRUST,22961633,"2,804.17 "
Department of Health,NHS Sheffield CCG,31/07/2018,C&M-PMS Contract Value,PRC DELEGATED CO-COMMISSIONING,SHEFFIELD HEALTH & SOCIAL CARE NHS FOUNDATION TRUST,22961633,"2,913.13 "
Department of Health,NHS Sheffield CCG,31/07/2018,C&M-PMS Out of Hours Opt Outs,PRC DELEGATED CO-COMMISSIONING,SHEFFIELD HEALTH & SOCIAL CARE NHS FOUNDATION TRUST,22961633,0.09 
Department of Health,NHS Sheffield CCG,31/07/2018,C&M-PMS QOF Aspiration,PRC DELEGATED CO-COMMISSIONING,SHEFFIELD HEALTH & SOCIAL CARE NHS FOUNDATION TRUST,22961633,"11,714.38 "
Department of Health,NHS Sheffield CCG,31/07/2018,C&M-APMS Contract Value,PRC DELEGATED CO-COMMISSIONING,SHEFFIELD HEALTH & SOCIAL CARE NHS FOUNDATION TRUST,22961634,"25,831.92 "
Department of Health,NHS Sheffield CCG,31/07/2018,C&M-APMS OOH Opt Outs,PRC DELEGATED CO-COMMISSIONING,SHEFFIELD HEALTH & SOCIAL CARE NHS FOUNDATION TRUST,22961634,7.96 
Department of Health,NHS Sheffield CCG,31/07/2018,C&M-PMS Contract Value,PRC DELEGATED CO-COMMISSIONING,SHEFFIELD HEALTH & SOCIAL CARE NHS FOUNDATION TRUST,22961634,635.43 
Department of Health,NHS Sheffield CCG,31/07/2018,C&M-PMS Out of Hours Opt Outs,PRC DELEGATED CO-COMMISSIONING,SHEFFIELD HEALTH & SOCIAL CARE NHS FOUNDATION TRUST,22961634,0.15 
Department of Health,NHS Sheffield CCG,31/07/2018,C&M-PMS QOF Aspiration,PRC DELEGATED CO-COMMISSIONING,SHEFFIELD HEALTH & SOCIAL CARE NHS FOUNDATION TRUST,22961634,"1,425.29 "
Department of Health,NHS Sheffield CCG,31/07/2018,C&M-PMS Contract Value,PRC DELEGATED CO-COMMISSIONING,MANOR & PARK GROUP PRACTICE,22961636,"75,960.33 "
Department of Health,NHS Sheffield CCG,31/07/2018,C&M-PMS DES Extended Hours Access,PRC DELEGATED CO-COMMISSIONING,MANOR & PARK GROUP PRACTICE,22961636,"2,098.08 "
Department of Health,NHS Sheffield CCG,31/07/2018,C&M-PMS DES Learn Dsblty Hlth Chk,PRC DELEGATED CO-COMMISSIONING,MANOR & PARK GROUP PRACTICE,22961636,140.00 
Department of Health,NHS Sheffield CCG,31/07/2018,C&M-PMS Prem Notional Rent,PRC DELEGATED CO-COMMISSIONING,MANOR & PARK GROUP PRACTICE,22961636,"9,050.00 "
Department of Health,NHS Sheffield CCG,31/07/2018,C&M-PMS Prem Rates,PRC DELEGATED CO-COMMISSIONING,MANOR & PARK GROUP PRACTICE,22961636,975.00 
Department of Health,NHS Sheffield CCG,31/07/2018,C&M-PMS Prem Water Rates,PRC DELEGATED CO-COMMISSIONING,MANOR & PARK GROUP PRACTICE,22961636,336.24 
Department of Health,NHS Sheffield CCG,31/07/2018,C&M-PMS QOF Aspiration,PRC DELEGATED CO-COMMISSIONING,MANOR & PARK GROUP PRACTICE,22961636,"15,725.78 "
Department of Health,NHS Sheffield CCG,31/07/2018,C&M-PMS Contract Value,PRC DELEGATED CO-COMMISSIONING,WOODSEATS MEDICAL CENTRE,22961643,"71,106.63 "
Department of Health,NHS Sheffield CCG,31/07/2018,C&M-PMS Cost of Drugs -Prescribing,LOCAL ENHANCED SERVICES,WOODSEATS MEDICAL CENTRE,22961643,2.99 
Department of Health,NHS Sheffield CCG,31/07/2018,C&M-PMS PCO Other,PRC DELEGATED CO-COMMISSIONING,WOODSEATS MEDICAL CENTRE,22961643,661.44 
Department of Health,NHS Sheffield CCG,31/07/2018,C&M-PMS Prem Notional Rent,PRC DELEGATED CO-COMMISSIONING,WOODSEATS MEDICAL CENTRE,22961643,"11,666.67 "
Department of Health,NHS Sheffield CCG,31/07/2018,C&M-PMS Prem Rates,PRC DELEGATED CO-COMMISSIONING,WOODSEATS MEDICAL CENTRE,22961643,"3,032.00 "
Department of Health,NHS Sheffield CCG,31/07/2018,C&M-PMS Prof fees Prescribing,PRC DELEGATED CO-COMMISSIONING,WOODSEATS MEDICAL CENTRE,22961643,1.53 
Department of Health,NHS Sheffield CCG,31/07/2018,C&M-PMS QOF Aspiration,PRC DELEGATED CO-COMMISSIONING,WOODSEATS MEDICAL CENTRE,22961643,"7,979.47 "
Department of Health,NHS Sheffield CCG,31/07/2018,Clinical&Medical-Voluntary Sector,COMMUNITY SERVICES,CHILDREN & YOUNG PEOPLES EMPOWERMENT PROJECT LTD,22968857,"83,092.00 "
Department of Health,NHS Sheffield CCG,31/07/2018,Cont Care-Funded Nursing Care Allow,FUNDED NURSING CARE,ULTIMA CARE CENTRES (NO1) LTD,22968877,"40,195.11 "
Department of Health,NHS Sheffield CCG,31/07/2018,Cont Care-Funded Nursing Care Allow,FUNDED NURSING CARE,COUNTRY COURT CARE LTD,22968881,"30,773.31 "
Department of Health,NHS Sheffield CCG,31/07/2018,Cont Care-Physical Disab (<65),CHC ADULT FULLY FUNDED,NEVILLE HEALTH CARE LTD,22968894,"29,328.35 "
Department of Health,NHS Sheffield CCG,31/07/2018,Cont Care-Physical Disab (<65),CHC ADULT FULLY FUNDED,PRIORY GROUP LTD,22968895,"29,252.20 "
Department of Health,NHS Sheffield CCG,31/07/2018,Cont Care-Physical Disab (<65),CHC ADULT FULLY FUNDED,SEVEN HILLS NURSING HOME,22968898,"35,029.14 "
Department of Health,NHS Sheffield CCG,31/07/2018,Cont Care-Physical Disab (<65),CHC ADULT FULLY FUNDED,HC ONE LTD,22968905,"36,479.54 "
Department of Health,NHS Sheffield CCG,31/07/2018,Cont Care-Physical Disab (<65),CHC ADULT FULLY FUNDED,ROSEBERRY CARE CENTRES,22968906,"26,624.21 "
Department of Health,NHS Sheffield CCG,31/07/2018,Cont Care-Physical Disab (<65),CHC ADULT FULLY FUNDED,HORIZON CARE HOMES LTD,22968909,"36,033.42 "
Department of Health,NHS Sheffield CCG,31/07/2018,Cont Care-Physical Disab (<65),CHC ADULT FULLY FUNDED,FAIRWINDS HEALTH CARE LTD,22968910,"27,834.87 "
Department of Health,NHS Sheffield CCG,31/07/2018,Cont Care-Funded Nursing Care Allow,FUNDED NURSING CARE,ROSEBERRY CARE CENTRES,22968913,"34,117.28 "
Department of Health,NHS Sheffield CCG,31/07/2018,Cont Care-Physical Disab (<65),CHC ADULT FULLY FUNDED,ALPINE HEALTH CARE,22968926,"35,093.67 "
Department of Health,NHS Sheffield CCG,31/07/2018,Cont Care-Physical Disab (<65),CHC ADULT FULLY FUNDED,SUSASH GB LTD T/A EAGLE HOUSE,22968929,"27,317.46 "
Department of Health,NHS Sheffield CCG,31/07/2018,Cont Care-Physical Disab (<65),CHC ADULT FULLY FUNDED,ROSEBERRY CARE CENTRES,22968930,"36,228.40 "
Department of Health,NHS Sheffield CCG,31/07/2018,Cont Care-Physical Disab (65+),CHC ADULT FULLY FUNDED,BC SHEFFIELD LTD,22968945,"36,915.01 "
Department of Health,NHS Sheffield CCG,31/07/2018,Hcare Srv Rec Fdtn Trust-Contract Baseline,MENTAL HEALTH CONTRACTS,SHEFFIELD HEALTH & SOCIAL CARE NHS FOUNDATION TRUST,22972995,"6,391,179.25 "
Department of Health,NHS Sheffield CCG,31/07/2018,Clinical&Medical-Independent Sector,ACUTE COMMISSIONING,CLAREMONT HOSPITAL,22972996,"65,047.00 "
Department of Health,NHS Sheffield CCG,31/07/2018,C&M-PMS Contract Value,PRC DELEGATED CO-COMMISSIONING,HACKENTHORPE MEDICAL CENTRE,22979964,"47,510.96 "
Department of Health,NHS Sheffield CCG,31/07/2018,C&M-PMS PCO Other,PRC DELEGATED CO-COMMISSIONING,HACKENTHORPE MEDICAL CENTRE,22979964,480.78 
Department of Health,NHS Sheffield CCG,31/07/2018,C&M-PMS Prem Notional Rent,PRC DELEGATED CO-COMMISSIONING,HACKENTHORPE MEDICAL CENTRE,22979964,"4,981.25 "
Department of Health,NHS Sheffield CCG,31/07/2018,C&M-PMS Prem Rates,PRC DELEGATED CO-COMMISSIONING,HACKENTHORPE MEDICAL CENTRE,22979964,"1,196.00 "
Department of Health,NHS Sheffield CCG,31/07/2018,C&M-PMS Prem Water Rates,PRC DELEGATED CO-COMMISSIONING,HACKENTHORPE MEDICAL CENTRE,22979964,171.47 
Department of Health,NHS Sheffield CCG,31/07/2018,C&M-PMS QOF Aspiration,PRC DELEGATED CO-COMMISSIONING,HACKENTHORPE MEDICAL CENTRE,22979964,"6,346.88 "
Department of Health,NHS Sheffield CCG,31/07/2018,Hcare Srv Rec Fdtn Trust-Contract Baseline,ACUTE COMMISSIONING,DONCASTER AND BASSETLAW HOSPITALS NHS FOUNDATION TRUST,23005738,"35,160.00 "
Department of Health,NHS Sheffield CCG,31/07/2018,Hcare Srv Rec NHS Trust-Contract Baseline,ACUTE COMMISSIONING,NOTTINGHAM UNIVERSITY HOSPITALS NHS TRUST,23005896,"28,040.00 "
Department of Health,NHS Sheffield CCG,31/07/2018,C&M-GMS LES Translation Fees,INTERPRETING SERVICES,LANGUAGELINE SOLUTIONS,23021326,"29,695.80 "
Department of Health,NHS Sheffield CCG,31/07/2018,C&M-GMS LES Translation Fees,LOCAL ENHANCED SERVICES,LANGUAGELINE SOLUTIONS,23021331,"38,204.52 "
Department of Health,NHS Sheffield CCG,31/07/2018,Hcare Srv Rec Fdtn Trust-Contract Baseline,MENTAL HEALTH CONTRACTS,NORTHUMBERLAND TYNE AND WEAR NHS FOUNDATION TRUST,23021338,"72,402.60 "
Department of Health,NHS Sheffield CCG,31/07/2018,C&M-APMS DES Extended Hours Access,GP FORWARD VIEW,PRIMARY CARE SHEFFIELD LTD,23021511,"291,333.34 "
Department of Health,NHS Sheffield CCG,31/07/2018,Clinical&Medical-Independent Sector,ACUTE COMMISSIONING,ONEHEALTH GROUP,23021534,"74,162.00 "
Department of Health,NHS Sheffield CCG,31/07/2018,C&M-GMS LES Equitable Funding,LOCAL ENHANCED SERVICES,PORTER BROOK MEDICAL CENTRE,23071874,"26,331.00 "
Department of Health,NHS Sheffield CCG,31/07/2018,C&M-GMS LES Equitable Funding,LOCAL ENHANCED SERVICES,UNIVERSITY HEALTH SERVICE,23071920,"26,202.00 "
Department of Health,NHS Sheffield CCG,31/07/2018,Miscellaneous Expenditure (L9),COUNSELLING SERVICES,SHEFFIELD TEACHING HOSPITALS NHS FOUNDATION TRUST,23088522,159.00 
Department of Health,NHS Sheffield CCG,31/07/2018,Oth Travel Costs-Car Mileage,COUNSELLING SERVICES,SHEFFIELD TEACHING HOSPITALS NHS FOUNDATION TRUST,23088522,95.00 
Department of Health,NHS Sheffield CCG,31/07/2018,Seconded-Basic Sal-Staff fm oth org,COUNSELLING SERVICES,SHEFFIELD TEACHING HOSPITALS NHS FOUNDATION TRUST,23088522,"25,107.75 "
Department of Health,NHS Sheffield CCG,31/07/2018,Seconded-Employer's NHI Costs,COUNSELLING SERVICES,SHEFFIELD TEACHING HOSPITALS NHS FOUNDATION TRUST,23088522,"3,141.16 "
Department of Health,NHS Sheffield CCG,31/07/2018,Hcare Srv Rec Fdtn Trust-Contract Baseline,ACUTE COMMISSIONING,CHESTERFIELD ROYAL HOSPITAL NHS FOUNDATION TRUST,23088532,"266,428.00 "
Department of Health,NHS Sheffield CCG,31/07/2018,Hcare Srv Rec Fdtn Trust-Contract Baseline,ACUTE COMMISSIONING,BARNSLEY HOSPITAL NHS FOUNDATION TRUST,23088541,"73,344.00 "
Department of Health,NHS Sheffield CCG,31/07/2018,PREPYMT OVERSEAS NON EEA PATIENTS,CHC RETRO,SHEFFIELD TEACHING HOSPITALS NHS FOUNDATION TRUST,23088607,"(35,655.39)"
Department of Health,NHS Sheffield CCG,31/07/2018,Cont Care-Physical Disab (65+),CHC ADULT FULLY FUNDED,SHEFFIELD CITY COUNCIL,23088612,"834,091.25 "
Department of Health,NHS Sheffield CCG,31/07/2018,Hcare Srv Rec NHS Trust-Contract Baseline,AMBULANCE SERVICES,YORKSHIRE AMBULANCE SERVICE NHS TRUST,23088637,"82,698.33 "
Department of Health,NHS Sheffield CCG,31/07/2018,Clinical&Medical-Commercial Sector,PATIENT TRANSPORT,PREMIER CARE DIRECT LTD,23095061,"91,807.22 "
Department of Health,NHS Sheffield CCG,31/07/2018,Clinical&Medical-Othe Public Sector,CLINICAL LEADS,SHEFFIELD CITY COUNCIL,23118878,"106,500.00 "
Department of Health,NHS Sheffield CCG,31/07/2018,Clinical&Medical-Independent Sector,MENTAL HEALTH SERVICES - OTHER,ELYSIUM HEALTHCARE LTD,23128662,"30,416.70 "
Department of Health,NHS Sheffield CCG,31/07/2018,Clinical&Medical-Independent Sector,MENTAL HEALTH SERVICES - OTHER,ELYSIUM HEALTHCARE LTD,23128740,"31,430.59 "
Department of Health,NHS Sheffield CCG,31/07/2018,Cont Care-NHSFT-Adult 100% Funded,CHC ADULT FULLY FUNDED,SHEFFIELD HEALTH & SOCIAL CARE NHS FOUNDATION TRUST,23128884,"240,830.02 "
Department of Health,NHS Sheffield CCG,31/07/2018,Charges from CSU,BUSINESS INFORMATICS,NHS NORTH OF ENGLAND CSU,23128902,"30,083.00 "
Department of Health,NHS Sheffield CCG,31/07/2018,Clinical&Medical-Othe Public Sector,CHILD AND ADOLESCENT MENTAL HEALTH,SHEFFIELD CITY COUNCIL,23131133,"88,944.00 "
Department of Health,NHS Sheffield CCG,31/07/2018,Cont Care-Learning Disab(<65),CHC ADULT JOINT FUNDED,SHEFFIELD CITY COUNCIL,23131271,"37,396.37 "
Department of Health,NHS Sheffield CCG,31/07/2018,Miscellaneous Expenditure (L9),BEREAVEMENT SERVICE,SHEFFIELD TEACHING HOSPITALS NHS FOUNDATION TRUST,23151274,125.00 
Department of Health,NHS Sheffield CCG,31/07/2018,Seconded-Basic Sal-Staff fm oth org,BEREAVEMENT SERVICE,SHEFFIELD TEACHING HOSPITALS NHS FOUNDATION TRUST,23151274,"24,999.99 "
Department of Health,NHS Sheffield CCG,31/07/2018,Seconded-Employer's NHI Costs,BEREAVEMENT SERVICE,SHEFFIELD TEACHING HOSPITALS NHS FOUNDATION TRUST,23151274,"3,159.36 "
Department of Health,NHS Sheffield CCG,31/07/2018,Seconded-Basic Sal-Staff fm oth org,BEREAVEMENT SERVICE,SHEFFIELD TEACHING HOSPITALS NHS FOUNDATION TRUST,23151278,"30,720.00 "
Department of Health,NHS Sheffield CCG,31/07/2018,Voids and Subsidies,RECHARGES NHS PROPERTY SERVICES LTD,NHS PROPERTY SERVICES LTD,23168114,"36,996.69 "
Department of Health,NHS Sheffield CCG,31/07/2018,Clinical&Medical-Independent Sector,Mental Health Services - S117 Mental Health,MOORVILLE RESIDENTIAL,23168811,"8,124.30 "
Department of Health,NHS Sheffield CCG,31/07/2018,Cont Care-Learning Disab(<65),CHC ADULT FULLY FUNDED,MOORVILLE RESIDENTIAL,23168811,"20,005.05 "
Department of Health,NHS Sheffield CCG,31/07/2018,Cont Care-Learning Disab(<65),CHC ADULT JOINT FUNDED,MOORVILLE RESIDENTIAL,23168811,"1,212.73 "
Department of Health,NHS Sheffield CCG,31/07/2018,Cont Care-Mental Health (<65),CHC ADULT JOINT FUNDED,MOORVILLE RESIDENTIAL,23168811,491.57 
Department of Health,NHS Sheffield CCG,31/07/2018,C&M-GMS Cost of Drugs -Prescribing,LOCAL ENHANCED SERVICES,BASLOW ROAD & SHOREHAM STREET SURGERIES,23187422,424.49 
Department of Health,NHS Sheffield CCG,31/07/2018,C&M-GMS Global Sum,PRC DELEGATED CO-COMMISSIONING,BASLOW ROAD & SHOREHAM STREET SURGERIES,23187422,"95,670.83 "
Department of Health,NHS Sheffield CCG,31/07/2018,C&M-GMS MPIG Correction Factor,PRC DELEGATED CO-COMMISSIONING,BASLOW ROAD & SHOREHAM STREET SURGERIES,23187422,292.43 
Department of Health,NHS Sheffield CCG,31/07/2018,C&M-GMS Prem Notional Rent,PRC DELEGATED CO-COMMISSIONING,BASLOW ROAD & SHOREHAM STREET SURGERIES,23187422,"8,511.25 "
Department of Health,NHS Sheffield CCG,31/07/2018,C&M-GMS Prem Rates,PRC DELEGATED CO-COMMISSIONING,BASLOW ROAD & SHOREHAM STREET SURGERIES,23187422,"2,273.00 "
Department of Health,NHS Sheffield CCG,31/07/2018,C&M-GMS Prof Fees Prescribing,PRC DELEGATED CO-COMMISSIONING,BASLOW ROAD & SHOREHAM STREET SURGERIES,23187422,48.30 
Department of Health,NHS Sheffield CCG,31/07/2018,C&M-GMS QOF Aspiration,PRC DELEGATED CO-COMMISSIONING,BASLOW ROAD & SHOREHAM STREET SURGERIES,23187422,"10,715.96 "
Department of Health,NHS Sheffield CCG,31/07/2018,C&M-GMS Global Sum,PRC DELEGATED CO-COMMISSIONING,BUCHANAN ROAD SURGERY,23187425,"35,327.41 "
Department of Health,NHS Sheffield CCG,31/07/2018,C&M-GMS MPIG Correction Factor,PRC DELEGATED CO-COMMISSIONING,BUCHANAN ROAD SURGERY,23187425,"1,310.51 "
Department of Health,NHS Sheffield CCG,31/07/2018,C&M-GMS Prem Notional Rent,PRC DELEGATED CO-COMMISSIONING,BUCHANAN ROAD SURGERY,23187425,"2,595.83 "
Department of Health,NHS Sheffield CCG,31/07/2018,C&M-GMS Prem Rates,PRC DELEGATED CO-COMMISSIONING,BUCHANAN ROAD SURGERY,23187425,864.00 
Department of Health,NHS Sheffield CCG,31/07/2018,C&M-GMS QOF Aspiration,PRC DELEGATED CO-COMMISSIONING,BUCHANAN ROAD SURGERY,23187425,"4,144.11 "
Department of Health,NHS Sheffield CCG,31/07/2018,C&M-GMS Cost of Drugs -Prescribing,LOCAL ENHANCED SERVICES,BROOMHILL SURGERY,23187429,"2,588.90 "
Department of Health,NHS Sheffield CCG,31/07/2018,C&M-GMS Global Sum,PRC DELEGATED CO-COMMISSIONING,BROOMHILL SURGERY,23187429,"62,467.91 "
Department of Health,NHS Sheffield CCG,31/07/2018,C&M-GMS MPIG Correction Factor,PRC DELEGATED CO-COMMISSIONING,BROOMHILL SURGERY,23187429,502.00 
Department of Health,NHS Sheffield CCG,31/07/2018,C&M-GMS Prem Cost Rent,PRC DELEGATED CO-COMMISSIONING,BROOMHILL SURGERY,23187429,"3,380.00 "
Department of Health,NHS Sheffield CCG,31/07/2018,C&M-GMS Prem Notional Rent,PRC DELEGATED CO-COMMISSIONING,BROOMHILL SURGERY,23187429,"2,541.67 "
Department of Health,NHS Sheffield CCG,31/07/2018,C&M-GMS Prem Rates,PRC DELEGATED CO-COMMISSIONING,BROOMHILL SURGERY,23187429,"7,392.00 "
Department of Health,NHS Sheffield CCG,31/07/2018,C&M-GMS Prem Water Rates,PRC DELEGATED CO-COMMISSIONING,BROOMHILL SURGERY,23187429,40.30 
Department of Health,NHS Sheffield CCG,31/07/2018,C&M-GMS Prof Fees Prescribing,PRC DELEGATED CO-COMMISSIONING,BROOMHILL SURGERY,23187429,110.40 
Department of Health,NHS Sheffield CCG,31/07/2018,C&M-GMS QOF Aspiration,PRC DELEGATED CO-COMMISSIONING,BROOMHILL SURGERY,23187429,"6,274.17 "
Department of Health,NHS Sheffield CCG,31/07/2018,C&M-GMS Cost of Drugs -Prescribing,LOCAL ENHANCED SERVICES,CHARNOCK HEALTH PRIMARY CARE CENTRE,23187431,928.01 
Department of Health,NHS Sheffield CCG,31/07/2018,C&M-GMS Global Sum,PRC DELEGATED CO-COMMISSIONING,CHARNOCK HEALTH PRIMARY CARE CENTRE,23187431,"40,897.62 "
Department of Health,NHS Sheffield CCG,31/07/2018,C&M-GMS MPIG Correction Factor,PRC DELEGATED CO-COMMISSIONING,CHARNOCK HEALTH PRIMARY CARE CENTRE,23187431,413.25 
Department of Health,NHS Sheffield CCG,31/07/2018,C&M-GMS PCO Locum Adop/Pat/Mat,PRC DELEGATED CO-COMMISSIONING,CHARNOCK HEALTH PRIMARY CARE CENTRE,23187431,"6,419.36 "
Department of Health,NHS Sheffield CCG,31/07/2018,C&M-GMS Prem Actual Rent,PRC DELEGATED CO-COMMISSIONING,CHARNOCK HEALTH PRIMARY CARE CENTRE,23187431,"20,100.00 "
Department of Health,NHS Sheffield CCG,31/07/2018,C&M-GMS Prem Notional Rent,PRC DELEGATED CO-COMMISSIONING,CHARNOCK HEALTH PRIMARY CARE CENTRE,23187431,335.00 
Department of Health,NHS Sheffield CCG,31/07/2018,C&M-GMS Prem Rates,PRC DELEGATED CO-COMMISSIONING,CHARNOCK HEALTH PRIMARY CARE CENTRE,23187431,"1,247.00 "
Department of Health,NHS Sheffield CCG,31/07/2018,C&M-GMS Prof Fees Prescribing,PRC DELEGATED CO-COMMISSIONING,CHARNOCK HEALTH PRIMARY CARE CENTRE,23187431,115.00 
Department of Health,NHS Sheffield CCG,31/07/2018,C&M-GMS QOF Aspiration,PRC DELEGATED CO-COMMISSIONING,CHARNOCK HEALTH PRIMARY CARE CENTRE,23187431,"4,710.20 "
Department of Health,NHS Sheffield CCG,31/07/2018,C&M-GMS Cost of Drugs -Prescribing,LOCAL ENHANCED SERVICES,CARTERKNOWLE & DORE MEDICAL PRACTICE,23187434,"3,611.26 "
Department of Health,NHS Sheffield CCG,31/07/2018,C&M-GMS Global Sum,PRC DELEGATED CO-COMMISSIONING,CARTERKNOWLE & DORE MEDICAL PRACTICE,23187434,"82,367.79 "
Department of Health,NHS Sheffield CCG,31/07/2018,C&M-GMS MPIG Correction Factor,PRC DELEGATED CO-COMMISSIONING,CARTERKNOWLE & DORE MEDICAL PRACTICE,23187434,"1,494.59 "
Department of Health,NHS Sheffield CCG,31/07/2018,C&M-GMS Prem Notional Rent,PRC DELEGATED CO-COMMISSIONING,CARTERKNOWLE & DORE MEDICAL PRACTICE,23187434,"7,596.50 "
Department of Health,NHS Sheffield CCG,31/07/2018,C&M-GMS Prem Rates,PRC DELEGATED CO-COMMISSIONING,CARTERKNOWLE & DORE MEDICAL PRACTICE,23187434,"1,880.00 "
Department of Health,NHS Sheffield CCG,31/07/2018,C&M-GMS Prof Fees Prescribing,PRC DELEGATED CO-COMMISSIONING,CARTERKNOWLE & DORE MEDICAL PRACTICE,23187434,563.50 
Department of Health,NHS Sheffield CCG,31/07/2018,C&M-GMS QOF Aspiration,PRC DELEGATED CO-COMMISSIONING,CARTERKNOWLE & DORE MEDICAL PRACTICE,23187434,"10,163.70 "
Department of Health,NHS Sheffield CCG,31/07/2018,C&M-GMS Cost of Drugs -Prescribing,LOCAL ENHANCED SERVICES,CROOKES PRACTICE,23187438,"1,196.34 "
Department of Health,NHS Sheffield CCG,31/07/2018,C&M-GMS Global Sum,PRC DELEGATED CO-COMMISSIONING,CROOKES PRACTICE,23187438,"49,360.79 "
Department of Health,NHS Sheffield CCG,31/07/2018,C&M-GMS MPIG Correction Factor,PRC DELEGATED CO-COMMISSIONING,CROOKES PRACTICE,23187438,"1,545.92 "
Department of Health,NHS Sheffield CCG,31/07/2018,C&M-GMS PCO Other,PRC DELEGATED CO-COMMISSIONING,CROOKES PRACTICE,23187438,559.22 
Department of Health,NHS Sheffield CCG,31/07/2018,C&M-GMS Prem Notional Rent,PRC DELEGATED CO-COMMISSIONING,CROOKES PRACTICE,23187438,"3,874.67 "
Department of Health,NHS Sheffield CCG,31/07/2018,C&M-GMS Prem Rates,PRC DELEGATED CO-COMMISSIONING,CROOKES PRACTICE,23187438,"1,476.00 "
Department of Health,NHS Sheffield CCG,31/07/2018,C&M-GMS Prof Fees Prescribing,PRC DELEGATED CO-COMMISSIONING,CROOKES PRACTICE,23187438,177.10 
Department of Health,NHS Sheffield CCG,31/07/2018,C&M-GMS QOF Aspiration,PRC DELEGATED CO-COMMISSIONING,CROOKES PRACTICE,23187438,"5,056.52 "
Department of Health,NHS Sheffield CCG,31/07/2018,C&M-GMS Cost of Drugs -Prescribing,LOCAL ENHANCED SERVICES,DEVONSHIRE GREEN MEDICAL CENTRE,23187441,964.67 
Department of Health,NHS Sheffield CCG,31/07/2018,C&M-GMS Global Sum,PRC DELEGATED CO-COMMISSIONING,DEVONSHIRE GREEN MEDICAL CENTRE,23187441,"44,691.36 "
Department of Health,NHS Sheffield CCG,31/07/2018,C&M-GMS MPIG Correction Factor,PRC DELEGATED CO-COMMISSIONING,DEVONSHIRE GREEN MEDICAL CENTRE,23187441,"3,231.20 "
Department of Health,NHS Sheffield CCG,31/07/2018,C&M-GMS Prem Notional Rent,PRC DELEGATED CO-COMMISSIONING,DEVONSHIRE GREEN MEDICAL CENTRE,23187441,"5,987.50 "
Department of Health,NHS Sheffield CCG,31/07/2018,C&M-GMS Prof Fees Prescribing,PRC DELEGATED CO-COMMISSIONING,DEVONSHIRE GREEN MEDICAL CENTRE,23187441,128.80 
Department of Health,NHS Sheffield CCG,31/07/2018,C&M-GMS QOF Aspiration,PRC DELEGATED CO-COMMISSIONING,DEVONSHIRE GREEN MEDICAL CENTRE,23187441,"4,641.81 "
Department of Health,NHS Sheffield CCG,31/07/2018,C&M-GMS Cost of Drugs -Prescribing,LOCAL ENHANCED SERVICES,ECCLESFIELD GROUP PRACTICE,23187445,"1,347.36 "
Department of Health,NHS Sheffield CCG,31/07/2018,C&M-GMS Global Sum,PRC DELEGATED CO-COMMISSIONING,ECCLESFIELD GROUP PRACTICE,23187445,"66,062.78 "
Department of Health,NHS Sheffield CCG,31/07/2018,C&M-GMS PCO Other,PRC DELEGATED CO-COMMISSIONING,ECCLESFIELD GROUP PRACTICE,23187445,572.78 
Department of Health,NHS Sheffield CCG,31/07/2018,C&M-GMS Prem Notional Rent,PRC DELEGATED CO-COMMISSIONING,ECCLESFIELD GROUP PRACTICE,23187445,"6,805.42 "
Department of Health,NHS Sheffield CCG,31/07/2018,C&M-GMS Prem Rates,PRC DELEGATED CO-COMMISSIONING,ECCLESFIELD GROUP PRACTICE,23187445,"1,278.00 "
Department of Health,NHS Sheffield CCG,31/07/2018,C&M-GMS Prof Fees Prescribing,PRC DELEGATED CO-COMMISSIONING,ECCLESFIELD GROUP PRACTICE,23187445,384.10 
Department of Health,NHS Sheffield CCG,31/07/2018,C&M-GMS QOF Aspiration,PRC DELEGATED CO-COMMISSIONING,ECCLESFIELD GROUP PRACTICE,23187445,"8,811.44 "
Department of Health,NHS Sheffield CCG,31/07/2018,C&M-GMS Cost of Drugs -Prescribing,LOCAL ENHANCED SERVICES,ELM LANE SURGERY,23187447,"1,514.84 "
Department of Health,NHS Sheffield CCG,31/07/2018,C&M-GMS Global Sum,PRC DELEGATED CO-COMMISSIONING,ELM LANE SURGERY,23187447,"38,806.41 "
Department of Health,NHS Sheffield CCG,31/07/2018,C&M-GMS MPIG Correction Factor,PRC DELEGATED CO-COMMISSIONING,ELM LANE SURGERY,23187447,838.53 
Department of Health,NHS Sheffield CCG,31/07/2018,C&M-GMS Prem Notional Rent,PRC DELEGATED CO-COMMISSIONING,ELM LANE SURGERY,23187447,"5,168.50 "
Department of Health,NHS Sheffield CCG,31/07/2018,C&M-GMS Prem Rates,PRC DELEGATED CO-COMMISSIONING,ELM LANE SURGERY,23187447,"1,340.00 "
Department of Health,NHS Sheffield CCG,31/07/2018,C&M-GMS Prof Fees Prescribing,PRC DELEGATED CO-COMMISSIONING,ELM LANE SURGERY,23187447,186.30 
Department of Health,NHS Sheffield CCG,31/07/2018,C&M-GMS QOF Aspiration,PRC DELEGATED CO-COMMISSIONING,ELM LANE SURGERY,23187447,"4,467.14 "
Department of Health,NHS Sheffield CCG,31/07/2018,C&M-GMS Cost of Drugs -Prescribing,LOCAL ENHANCED SERVICES,DUKE MEDICAL CENTRE,23187449,"1,289.54 "
Department of Health,NHS Sheffield CCG,31/07/2018,C&M-GMS DES Learn Dsblty Hlth Chk,PRC DELEGATED CO-COMMISSIONING,DUKE MEDICAL CENTRE,23187449,"1,400.00 "
Department of Health,NHS Sheffield CCG,31/07/2018,C&M-GMS Global Sum,PRC DELEGATED CO-COMMISSIONING,DUKE MEDICAL CENTRE,23187449,"56,419.92 "
Department of Health,NHS Sheffield CCG,31/07/2018,C&M-GMS MPIG Correction Factor,PRC DELEGATED CO-COMMISSIONING,DUKE MEDICAL CENTRE,23187449,612.51 
Department of Health,NHS Sheffield CCG,31/07/2018,C&M-GMS PCO Other,PRC DELEGATED CO-COMMISSIONING,DUKE MEDICAL CENTRE,23187449,495.17 
Department of Health,NHS Sheffield CCG,31/07/2018,C&M-GMS Prem Notional Rent,PRC DELEGATED CO-COMMISSIONING,DUKE MEDICAL CENTRE,23187449,"5,721.67 "
Department of Health,NHS Sheffield CCG,31/07/2018,C&M-GMS Prem Rates,PRC DELEGATED CO-COMMISSIONING,DUKE MEDICAL CENTRE,23187449,"1,098.00 "
Department of Health,NHS Sheffield CCG,31/07/2018,C&M-GMS Prof Fees Prescribing,PRC DELEGATED CO-COMMISSIONING,DUKE MEDICAL CENTRE,23187449,202.40 
Department of Health,NHS Sheffield CCG,31/07/2018,C&M-GMS QOF Aspiration,PRC DELEGATED CO-COMMISSIONING,DUKE MEDICAL CENTRE,23187449,"4,948.64 "
Department of Health,NHS Sheffield CCG,31/07/2018,C&M-GMS Cost of Drugs -Prescribing,LOCAL ENHANCED SERVICES,FAR LANE MEDICAL CENTRE,23187456,283.36 
Department of Health,NHS Sheffield CCG,31/07/2018,C&M-GMS Global Sum,PRC DELEGATED CO-COMMISSIONING,FAR LANE MEDICAL CENTRE,23187456,"54,159.55 "
Department of Health,NHS Sheffield CCG,31/07/2018,C&M-GMS PCO Other,PRC DELEGATED CO-COMMISSIONING,FAR LANE MEDICAL CENTRE,23187456,518.33 
Department of Health,NHS Sheffield CCG,31/07/2018,C&M-GMS Prem Notional Rent,PRC DELEGATED CO-COMMISSIONING,FAR LANE MEDICAL CENTRE,23187456,"3,462.50 "
Department of Health,NHS Sheffield CCG,31/07/2018,C&M-GMS Prem Rates,PRC DELEGATED CO-COMMISSIONING,FAR LANE MEDICAL CENTRE,23187456,"1,114.00 "
Department of Health,NHS Sheffield CCG,31/07/2018,C&M-GMS Prem Water Rates,PRC DELEGATED CO-COMMISSIONING,FAR LANE MEDICAL CENTRE,23187456,100.03 
Department of Health,NHS Sheffield CCG,31/07/2018,C&M-GMS Prof Fees Prescribing,PRC DELEGATED CO-COMMISSIONING,FAR LANE MEDICAL CENTRE,23187456,131.10 
Department of Health,NHS Sheffield CCG,31/07/2018,C&M-GMS QOF Aspiration,PRC DELEGATED CO-COMMISSIONING,FAR LANE MEDICAL CENTRE,23187456,"5,824.23 "
Department of Health,NHS Sheffield CCG,31/07/2018,C&M-GMS GP Statutory Levy,PRC DELEGATED CO-COMMISSIONING,HANDSWORTH MEDICAL PRACTICE SHEFFIELD,23187459,(297.48)
Department of Health,NHS Sheffield CCG,31/07/2018,C&M-GMS Voluntary Levy,PRC DELEGATED CO-COMMISSIONING,HANDSWORTH MEDICAL PRACTICE SHEFFIELD,23187459,(49.58)
Department of Health,NHS Sheffield CCG,31/07/2018,C&M-GMS Cost of Drugs -Prescribing,LOCAL ENHANCED SERVICES,HANDSWORTH MEDICAL PRACTICE SHEFFIELD,23187460,"1,435.51 "
Department of Health,NHS Sheffield CCG,31/07/2018,C&M-GMS Global Sum,PRC DELEGATED CO-COMMISSIONING,HANDSWORTH MEDICAL PRACTICE SHEFFIELD,23187460,"73,740.48 "
Department of Health,NHS Sheffield CCG,31/07/2018,C&M-GMS Prem Notional Rent,PRC DELEGATED CO-COMMISSIONING,HANDSWORTH MEDICAL PRACTICE SHEFFIELD,23187460,"3,321.66 "
Department of Health,NHS Sheffield CCG,31/07/2018,C&M-GMS Prem Water Rates,PRC DELEGATED CO-COMMISSIONING,HANDSWORTH MEDICAL PRACTICE SHEFFIELD,23187460,254.38 
Department of Health,NHS Sheffield CCG,31/07/2018,C&M-GMS Prof Fees Prescribing,PRC DELEGATED CO-COMMISSIONING,HANDSWORTH MEDICAL PRACTICE SHEFFIELD,23187460,248.40 
Department of Health,NHS Sheffield CCG,31/07/2018,C&M-GMS QOF Aspiration,PRC DELEGATED CO-COMMISSIONING,HANDSWORTH MEDICAL PRACTICE SHEFFIELD,23187460,"7,379.76 "
Department of Health,NHS Sheffield CCG,31/07/2018,C&M-GMS Cost of Drugs -Prescribing,LOCAL ENHANCED SERVICES,GRENOSIDE SURGERY,23187462,"2,038.00 "
Department of Health,NHS Sheffield CCG,31/07/2018,C&M-GMS Global Sum,PRC DELEGATED CO-COMMISSIONING,GRENOSIDE SURGERY,23187462,"56,233.78 "
Department of Health,NHS Sheffield CCG,31/07/2018,C&M-GMS Prem Notional Rent,PRC DELEGATED CO-COMMISSIONING,GRENOSIDE SURGERY,23187462,"8,110.42 "
Department of Health,NHS Sheffield CCG,31/07/2018,C&M-GMS Prem Rates,PRC DELEGATED CO-COMMISSIONING,GRENOSIDE SURGERY,23187462,"1,916.00 "
Department of Health,NHS Sheffield CCG,31/07/2018,C&M-GMS Prof Fees Prescribing,PRC DELEGATED CO-COMMISSIONING,GRENOSIDE SURGERY,23187462,117.30 
Department of Health,NHS Sheffield CCG,31/07/2018,C&M-GMS QOF Aspiration,PRC DELEGATED CO-COMMISSIONING,GRENOSIDE SURGERY,23187462,"5,655.38 "
Department of Health,NHS Sheffield CCG,31/07/2018,C&M-GMS Cost of Drugs -Prescribing,LOCAL ENHANCED SERVICES,GREYSTONES MEDICAL CENTRE,23187463,98.17 
Department of Health,NHS Sheffield CCG,31/07/2018,C&M-GMS Global Sum,PRC DELEGATED CO-COMMISSIONING,GREYSTONES MEDICAL CENTRE,23187463,"19,111.94 "
Department of Health,NHS Sheffield CCG,31/07/2018,C&M-GMS MPIG Correction Factor,PRC DELEGATED CO-COMMISSIONING,GREYSTONES MEDICAL CENTRE,23187463,"1,104.46 "
Department of Health,NHS Sheffield CCG,31/07/2018,C&M-GMS PCO Other,PRC DELEGATED CO-COMMISSIONING,GREYSTONES MEDICAL CENTRE,23187463,292.44 
Department of Health,NHS Sheffield CCG,31/07/2018,C&M-GMS Prem Notional Rent,PRC DELEGATED CO-COMMISSIONING,GREYSTONES MEDICAL CENTRE,23187463,"2,885.42 "
Department of Health,NHS Sheffield CCG,31/07/2018,C&M-GMS Prem Rates,PRC DELEGATED CO-COMMISSIONING,GREYSTONES MEDICAL CENTRE,23187463,538.00 
Department of Health,NHS Sheffield CCG,31/07/2018,C&M-GMS Prof Fees Prescribing,PRC DELEGATED CO-COMMISSIONING,GREYSTONES MEDICAL CENTRE,23187463,20.70 
Department of Health,NHS Sheffield CCG,31/07/2018,C&M-GMS QOF Aspiration,PRC DELEGATED CO-COMMISSIONING,GREYSTONES MEDICAL CENTRE,23187463,"2,246.27 "
Department of Health,NHS Sheffield CCG,31/07/2018,C&M-GMS Global Sum,PRC DELEGATED CO-COMMISSIONING,HEELEY GREEN SURGERY,23187465,"41,955.48 "
Department of Health,NHS Sheffield CCG,31/07/2018,C&M-GMS MPIG Correction Factor,PRC DELEGATED CO-COMMISSIONING,HEELEY GREEN SURGERY,23187465,376.20 
Department of Health,NHS Sheffield CCG,31/07/2018,C&M-GMS Prem Notional Rent,PRC DELEGATED CO-COMMISSIONING,HEELEY GREEN SURGERY,23187465,"3,254.17 "
Department of Health,NHS Sheffield CCG,31/07/2018,C&M-GMS QOF Aspiration,PRC DELEGATED CO-COMMISSIONING,HEELEY GREEN SURGERY,23187465,"4,672.20 "
Department of Health,NHS Sheffield CCG,31/07/2018,C&M-GMS Cost of Drugs -Prescribing,LOCAL ENHANCED SERVICES,HOLLIES MEDICAL CENTRE,23187467,882.67 
Department of Health,NHS Sheffield CCG,31/07/2018,C&M-GMS Global Sum,PRC DELEGATED CO-COMMISSIONING,HOLLIES MEDICAL CENTRE,23187467,"56,628.54 "
Department of Health,NHS Sheffield CCG,31/07/2018,C&M-GMS MPIG Correction Factor,PRC DELEGATED CO-COMMISSIONING,HOLLIES MEDICAL CENTRE,23187467,"1,452.73 "
Department of Health,NHS Sheffield CCG,31/07/2018,C&M-GMS Prem Notional Rent,PRC DELEGATED CO-COMMISSIONING,HOLLIES MEDICAL CENTRE,23187467,"3,229.17 "
Department of Health,NHS Sheffield CCG,31/07/2018,C&M-GMS Prof Fees Prescribing,PRC DELEGATED CO-COMMISSIONING,HOLLIES MEDICAL CENTRE,23187467,112.70 
Department of Health,NHS Sheffield CCG,31/07/2018,C&M-GMS QOF Aspiration,PRC DELEGATED CO-COMMISSIONING,HOLLIES MEDICAL CENTRE,23187467,"6,440.45 "
Department of Health,NHS Sheffield CCG,31/07/2018,C&M-GMS Cost of Drugs -Prescribing,LOCAL ENHANCED SERVICES,HEALTH CARE SURGERY,23187469,432.95 
Department of Health,NHS Sheffield CCG,31/07/2018,C&M-GMS Global Sum,PRC DELEGATED CO-COMMISSIONING,HEALTH CARE SURGERY,23187469,"37,619.47 "
Department of Health,NHS Sheffield CCG,31/07/2018,C&M-GMS MPIG Correction Factor,PRC DELEGATED CO-COMMISSIONING,HEALTH CARE SURGERY,23187469,780.02 
Department of Health,NHS Sheffield CCG,31/07/2018,C&M-GMS Prem Notional Rent,PRC DELEGATED CO-COMMISSIONING,HEALTH CARE SURGERY,23187469,"3,862.50 "
Department of Health,NHS Sheffield CCG,31/07/2018,C&M-GMS Prem Rates,PRC DELEGATED CO-COMMISSIONING,HEALTH CARE SURGERY,23187469,574.00 
Department of Health,NHS Sheffield CCG,31/07/2018,C&M-GMS Prof Fees Prescribing,PRC DELEGATED CO-COMMISSIONING,HEALTH CARE SURGERY,23187469,75.90 
Department of Health,NHS Sheffield CCG,31/07/2018,C&M-GMS QOF Aspiration,PRC DELEGATED CO-COMMISSIONING,HEALTH CARE SURGERY,23187469,"3,944.28 "
Department of Health,NHS Sheffield CCG,31/07/2018,C&M-GMS Cost of Drugs -Prescribing,LOCAL ENHANCED SERVICES,MEDICAL CENTRE CRYSTAL PEAKS,23187472,"1,027.93 "
Department of Health,NHS Sheffield CCG,31/07/2018,C&M-GMS Global Sum,PRC DELEGATED CO-COMMISSIONING,MEDICAL CENTRE CRYSTAL PEAKS,23187472,"45,143.30 "
Department of Health,NHS Sheffield CCG,31/07/2018,C&M-GMS MPIG Correction Factor,PRC DELEGATED CO-COMMISSIONING,MEDICAL CENTRE CRYSTAL PEAKS,23187472,"1,131.34 "
Department of Health,NHS Sheffield CCG,31/07/2018,C&M-GMS PCO Locum Adop/Pat/Mat,PRC DELEGATED CO-COMMISSIONING,MEDICAL CENTRE CRYSTAL PEAKS,23187472,"8,258.42 "
Department of Health,NHS Sheffield CCG,31/07/2018,C&M-GMS PCO Other,PRC DELEGATED CO-COMMISSIONING,MEDICAL CENTRE CRYSTAL PEAKS,23187472,474.67 
Department of Health,NHS Sheffield CCG,31/07/2018,C&M-GMS Prem Actual Rent,PRC DELEGATED CO-COMMISSIONING,MEDICAL CENTRE CRYSTAL PEAKS,23187472,"17,610.00 "
Department of Health,NHS Sheffield CCG,31/07/2018,C&M-GMS Prem Notional Rent,PRC DELEGATED CO-COMMISSIONING,MEDICAL CENTRE CRYSTAL PEAKS,23187472,270.00 
Department of Health,NHS Sheffield CCG,31/07/2018,C&M-GMS Prem Rates,PRC DELEGATED CO-COMMISSIONING,MEDICAL CENTRE CRYSTAL PEAKS,23187472,977.00 
Department of Health,NHS Sheffield CCG,31/07/2018,C&M-GMS Prof Fees Prescribing,PRC DELEGATED CO-COMMISSIONING,MEDICAL CENTRE CRYSTAL PEAKS,23187472,319.70 
Department of Health,NHS Sheffield CCG,31/07/2018,C&M-GMS QOF Aspiration,PRC DELEGATED CO-COMMISSIONING,MEDICAL CENTRE CRYSTAL PEAKS,23187472,"6,363.66 "
Department of Health,NHS Sheffield CCG,31/07/2018,C&M-GMS GP Statutory Levy,PRC DELEGATED CO-COMMISSIONING,MATHEWS PRACTICE,23187475,(257.28)
Department of Health,NHS Sheffield CCG,31/07/2018,C&M-GMS Voluntary Levy,PRC DELEGATED CO-COMMISSIONING,MATHEWS PRACTICE,23187475,(42.88)
Department of Health,NHS Sheffield CCG,31/07/2018,C&M-GMS Cost of Drugs -Prescribing,LOCAL ENHANCED SERVICES,MATHEWS PRACTICE,23187476,380.25 
Department of Health,NHS Sheffield CCG,31/07/2018,C&M-GMS Global Sum,PRC DELEGATED CO-COMMISSIONING,MATHEWS PRACTICE,23187476,"63,473.79 "
Department of Health,NHS Sheffield CCG,31/07/2018,C&M-GMS MPIG Correction Factor,PRC DELEGATED CO-COMMISSIONING,MATHEWS PRACTICE,23187476,598.96 
Department of Health,NHS Sheffield CCG,31/07/2018,C&M-GMS PCO Other,PRC DELEGATED CO-COMMISSIONING,MATHEWS PRACTICE,23187476,"5,508.00 "
Department of Health,NHS Sheffield CCG,31/07/2018,C&M-GMS Prem Notional Rent,PRC DELEGATED CO-COMMISSIONING,MATHEWS PRACTICE,23187476,"8,660.42 "
Department of Health,NHS Sheffield CCG,31/07/2018,C&M-GMS Prem Rates,PRC DELEGATED CO-COMMISSIONING,MATHEWS PRACTICE,23187476,"1,962.00 "
Department of Health,NHS Sheffield CCG,31/07/2018,C&M-GMS Prof Fees Prescribing,PRC DELEGATED CO-COMMISSIONING,MATHEWS PRACTICE,23187476,110.40 
Department of Health,NHS Sheffield CCG,31/07/2018,C&M-GMS QOF Aspiration,PRC DELEGATED CO-COMMISSIONING,MATHEWS PRACTICE,23187476,"7,748.47 "
Department of Health,NHS Sheffield CCG,31/07/2018,C&M-GMS Cost of Drugs -Prescribing,LOCAL ENHANCED SERVICES,NORFOLK PARK HEALTH CENTRE,23187482,783.41 
Department of Health,NHS Sheffield CCG,31/07/2018,C&M-GMS Global Sum,PRC DELEGATED CO-COMMISSIONING,NORFOLK PARK HEALTH CENTRE,23187482,"36,547.42 "
Department of Health,NHS Sheffield CCG,31/07/2018,C&M-GMS MPIG Correction Factor,PRC DELEGATED CO-COMMISSIONING,NORFOLK PARK HEALTH CENTRE,23187482,924.61 
Department of Health,NHS Sheffield CCG,31/07/2018,C&M-GMS Prem Healthcentre Rent,PRC DELEGATED CO-COMMISSIONING,NORFOLK PARK HEALTH CENTRE,23187482,"27,148.48 "
Department of Health,NHS Sheffield CCG,31/07/2018,C&M-GMS Prof Fees Prescribing,PRC DELEGATED CO-COMMISSIONING,NORFOLK PARK HEALTH CENTRE,23187482,94.30 
Department of Health,NHS Sheffield CCG,31/07/2018,C&M-GMS QOF Aspiration,PRC DELEGATED CO-COMMISSIONING,NORFOLK PARK HEALTH CENTRE,23187482,"3,810.65 "
Department of Health,NHS Sheffield CCG,31/07/2018,C&M-GMS Cost of Drugs -Prescribing,LOCAL ENHANCED SERVICES,NORWOOD MEDICAL CENTRE SHEFFIELD,23187485,190.17 
Department of Health,NHS Sheffield CCG,31/07/2018,C&M-GMS Global Sum,PRC DELEGATED CO-COMMISSIONING,NORWOOD MEDICAL CENTRE SHEFFIELD,23187485,"63,835.09 "
Department of Health,NHS Sheffield CCG,31/07/2018,C&M-GMS PCO Other,PRC DELEGATED CO-COMMISSIONING,NORWOOD MEDICAL CENTRE SHEFFIELD,23187485,559.17 
Department of Health,NHS Sheffield CCG,31/07/2018,C&M-GMS Prem Notional Rent,PRC DELEGATED CO-COMMISSIONING,NORWOOD MEDICAL CENTRE SHEFFIELD,23187485,"5,187.50 "
Department of Health,NHS Sheffield CCG,31/07/2018,C&M-GMS Prem Water Rates,PRC DELEGATED CO-COMMISSIONING,NORWOOD MEDICAL CENTRE SHEFFIELD,23187485,160.54 
Department of Health,NHS Sheffield CCG,31/07/2018,C&M-GMS Prof Fees Prescribing,PRC DELEGATED CO-COMMISSIONING,NORWOOD MEDICAL CENTRE SHEFFIELD,23187485,117.30 
Department of Health,NHS Sheffield CCG,31/07/2018,C&M-GMS QOF Aspiration,PRC DELEGATED CO-COMMISSIONING,NORWOOD MEDICAL CENTRE SHEFFIELD,23187485,"8,350.37 "
Department of Health,NHS Sheffield CCG,31/07/2018,C&M-GMS Cost of Drugs -Dispensing,LOCAL ENHANCED SERVICES,OUGHTIBRIDGE SURGERY,23187489,"30,821.22 "
Department of Health,NHS Sheffield CCG,31/07/2018,C&M-GMS Global Sum,PRC DELEGATED CO-COMMISSIONING,OUGHTIBRIDGE SURGERY,23187489,"42,315.23 "
Department of Health,NHS Sheffield CCG,31/07/2018,C&M-GMS Prem Notional Rent,PRC DELEGATED CO-COMMISSIONING,OUGHTIBRIDGE SURGERY,23187489,"3,957.33 "
Department of Health,NHS Sheffield CCG,31/07/2018,C&M-GMS Prem Rates,PRC DELEGATED CO-COMMISSIONING,OUGHTIBRIDGE SURGERY,23187489,976.00 
Department of Health,NHS Sheffield CCG,31/07/2018,C&M-GMS Prem Water Rates,PRC DELEGATED CO-COMMISSIONING,OUGHTIBRIDGE SURGERY,23187489,142.42 
Department of Health,NHS Sheffield CCG,31/07/2018,C&M-GMS Prof Fees Dispensing,PRC DELEGATED CO-COMMISSIONING,OUGHTIBRIDGE SURGERY,23187489,"4,565.25 "
Department of Health,NHS Sheffield CCG,31/07/2018,C&M-GMS PrscrptnChrgsColl&RmttdbyGP,LOCAL ENHANCED SERVICES,OUGHTIBRIDGE SURGERY,23187489,668.80 
Department of Health,NHS Sheffield CCG,31/07/2018,C&M-GMS QOF Aspiration,PRC DELEGATED CO-COMMISSIONING,OUGHTIBRIDGE SURGERY,23187489,"4,454.94 "
Department of Health,NHS Sheffield CCG,31/07/2018,C&M-GMS Cost of Drugs -Prescribing,LOCAL ENHANCED SERVICES,SHARROW LANE MEDICAL CENTRE,23187494,269.42 
Department of Health,NHS Sheffield CCG,31/07/2018,C&M-GMS Global Sum,PRC DELEGATED CO-COMMISSIONING,SHARROW LANE MEDICAL CENTRE,23187494,"22,577.90 "
Department of Health,NHS Sheffield CCG,31/07/2018,C&M-GMS MPIG Correction Factor,PRC DELEGATED CO-COMMISSIONING,SHARROW LANE MEDICAL CENTRE,23187494,"1,960.32 "
Department of Health,NHS Sheffield CCG,31/07/2018,C&M-GMS PCO Other,PRC DELEGATED CO-COMMISSIONING,SHARROW LANE MEDICAL CENTRE,23187494,302.53 
Department of Health,NHS Sheffield CCG,31/07/2018,C&M-GMS Prem Notional Rent,PRC DELEGATED CO-COMMISSIONING,SHARROW LANE MEDICAL CENTRE,23187494,"2,658.33 "
Department of Health,NHS Sheffield CCG,31/07/2018,C&M-GMS Prem Rates,PRC DELEGATED CO-COMMISSIONING,SHARROW LANE MEDICAL CENTRE,23187494,517.00 
Department of Health,NHS Sheffield CCG,31/07/2018,C&M-GMS Prof Fees Prescribing,PRC DELEGATED CO-COMMISSIONING,SHARROW LANE MEDICAL CENTRE,23187494,52.90 
Department of Health,NHS Sheffield CCG,31/07/2018,C&M-GMS QOF Aspiration,PRC DELEGATED CO-COMMISSIONING,SHARROW LANE MEDICAL CENTRE,23187494,"2,521.19 "
Department of Health,NHS Sheffield CCG,31/07/2018,C&M-GMS Cost of Drugs -Prescribing,LOCAL ENHANCED SERVICES,SHIREGREEN MEDICAL CENTRE,23187502,551.38 
Department of Health,NHS Sheffield CCG,31/07/2018,C&M-GMS Global Sum,PRC DELEGATED CO-COMMISSIONING,SHIREGREEN MEDICAL CENTRE,23187502,"57,658.55 "
Department of Health,NHS Sheffield CCG,31/07/2018,C&M-GMS MPIG Correction Factor,PRC DELEGATED CO-COMMISSIONING,SHIREGREEN MEDICAL CENTRE,23187502,453.69 
Department of Health,NHS Sheffield CCG,31/07/2018,C&M-GMS Prem Cost Rent,PRC DELEGATED CO-COMMISSIONING,SHIREGREEN MEDICAL CENTRE,23187502,"1,792.33 "
Department of Health,NHS Sheffield CCG,31/07/2018,C&M-GMS Prem Notional Rent,PRC DELEGATED CO-COMMISSIONING,SHIREGREEN MEDICAL CENTRE,23187502,"5,375.00 "
Department of Health,NHS Sheffield CCG,31/07/2018,C&M-GMS Prof Fees Prescribing,PRC DELEGATED CO-COMMISSIONING,SHIREGREEN MEDICAL CENTRE,23187502,78.20 
Department of Health,NHS Sheffield CCG,31/07/2018,C&M-GMS QOF Aspiration,PRC DELEGATED CO-COMMISSIONING,SHIREGREEN MEDICAL CENTRE,23187502,"6,765.83 "
Department of Health,NHS Sheffield CCG,31/07/2018,C&M-GMS Cost of Drugs -Prescribing,LOCAL ENHANCED SERVICES,STONECROFT MEDICAL CENTRE,23187504,410.70 
Department of Health,NHS Sheffield CCG,31/07/2018,C&M-GMS Global Sum,PRC DELEGATED CO-COMMISSIONING,STONECROFT MEDICAL CENTRE,23187504,"31,210.37 "
Department of Health,NHS Sheffield CCG,31/07/2018,C&M-GMS MPIG Correction Factor,PRC DELEGATED CO-COMMISSIONING,STONECROFT MEDICAL CENTRE,23187504,618.25 
Department of Health,NHS Sheffield CCG,31/07/2018,C&M-GMS PCO Other,PRC DELEGATED CO-COMMISSIONING,STONECROFT MEDICAL CENTRE,23187504,631.56 
Department of Health,NHS Sheffield CCG,31/07/2018,C&M-GMS Prem Notional Rent,PRC DELEGATED CO-COMMISSIONING,STONECROFT MEDICAL CENTRE,23187504,"2,808.33 "
Department of Health,NHS Sheffield CCG,31/07/2018,C&M-GMS Prem Rates,PRC DELEGATED CO-COMMISSIONING,STONECROFT MEDICAL CENTRE,23187504,"1,188.00 "
Department of Health,NHS Sheffield CCG,31/07/2018,C&M-GMS Prof Fees Prescribing,PRC DELEGATED CO-COMMISSIONING,STONECROFT MEDICAL CENTRE,23187504,82.80 
Department of Health,NHS Sheffield CCG,31/07/2018,C&M-GMS QOF Aspiration,PRC DELEGATED CO-COMMISSIONING,STONECROFT MEDICAL CENTRE,23187504,"4,160.47 "
Department of Health,NHS Sheffield CCG,31/07/2018,C&M-GMS Global Sum,PRC DELEGATED CO-COMMISSIONING,STANNINGTON MEDICAL CENTRE,23187506,"24,130.98 "
Department of Health,NHS Sheffield CCG,31/07/2018,C&M-GMS PCO Other,PRC DELEGATED CO-COMMISSIONING,STANNINGTON MEDICAL CENTRE,23187506,257.66 
Department of Health,NHS Sheffield CCG,31/07/2018,C&M-GMS Prem Notional Rent,PRC DELEGATED CO-COMMISSIONING,STANNINGTON MEDICAL CENTRE,23187506,"2,575.00 "
Department of Health,NHS Sheffield CCG,31/07/2018,C&M-GMS Prem Rates,PRC DELEGATED CO-COMMISSIONING,STANNINGTON MEDICAL CENTRE,23187506,368.00 
Department of Health,NHS Sheffield CCG,31/07/2018,C&M-GMS Prem Water Rates,PRC DELEGATED CO-COMMISSIONING,STANNINGTON MEDICAL CENTRE,23187506,152.02 
Department of Health,NHS Sheffield CCG,31/07/2018,C&M-GMS QOF Aspiration,PRC DELEGATED CO-COMMISSIONING,STANNINGTON MEDICAL CENTRE,23187506,"2,850.04 "
Department of Health,NHS Sheffield CCG,31/07/2018,C&M-GMS Cost of Drugs -Prescribing,LOCAL ENHANCED SERVICES,TOTLEY RISE MEDICAL CENTRE,23187508,438.16 
Department of Health,NHS Sheffield CCG,31/07/2018,C&M-GMS Global Sum,PRC DELEGATED CO-COMMISSIONING,TOTLEY RISE MEDICAL CENTRE,23187508,"23,599.83 "
Department of Health,NHS Sheffield CCG,31/07/2018,C&M-GMS MPIG Correction Factor,PRC DELEGATED CO-COMMISSIONING,TOTLEY RISE MEDICAL CENTRE,23187508,103.13 
Department of Health,NHS Sheffield CCG,31/07/2018,C&M-GMS Prem Notional Rent,PRC DELEGATED CO-COMMISSIONING,TOTLEY RISE MEDICAL CENTRE,23187508,"1,491.67 "
Department of Health,NHS Sheffield CCG,31/07/2018,C&M-GMS Prem Rates,PRC DELEGATED CO-COMMISSIONING,TOTLEY RISE MEDICAL CENTRE,23187508,151.00 
Department of Health,NHS Sheffield CCG,31/07/2018,C&M-GMS Prof Fees Prescribing,PRC DELEGATED CO-COMMISSIONING,TOTLEY RISE MEDICAL CENTRE,23187508,62.10 
Department of Health,NHS Sheffield CCG,31/07/2018,C&M-GMS QOF Aspiration,PRC DELEGATED CO-COMMISSIONING,TOTLEY RISE MEDICAL CENTRE,23187508,"1,881.75 "
Department of Health,NHS Sheffield CCG,31/07/2018,C&M-GMS Cost of Drugs -Prescribing,LOCAL ENHANCED SERVICES,TRAMWAYS MEDICAL CENTRE,23187510,"2,280.88 "
Department of Health,NHS Sheffield CCG,31/07/2018,C&M-GMS Global Sum,PRC DELEGATED CO-COMMISSIONING,TRAMWAYS MEDICAL CENTRE,23187510,"60,297.52 "
Department of Health,NHS Sheffield CCG,31/07/2018,C&M-GMS PCO Other,PRC DELEGATED CO-COMMISSIONING,TRAMWAYS MEDICAL CENTRE,23187510,597.78 
Department of Health,NHS Sheffield CCG,31/07/2018,C&M-GMS Prem Cost Rent,PRC DELEGATED CO-COMMISSIONING,TRAMWAYS MEDICAL CENTRE,23187510,"4,012.75 "
Department of Health,NHS Sheffield CCG,31/07/2018,C&M-GMS Prem Rates,PRC DELEGATED CO-COMMISSIONING,TRAMWAYS MEDICAL CENTRE,23187510,980.00 
Department of Health,NHS Sheffield CCG,31/07/2018,C&M-GMS Prof Fees Prescribing,PRC DELEGATED CO-COMMISSIONING,TRAMWAYS MEDICAL CENTRE,23187510,200.10 
Department of Health,NHS Sheffield CCG,31/07/2018,C&M-GMS QOF Aspiration,PRC DELEGATED CO-COMMISSIONING,TRAMWAYS MEDICAL CENTRE,23187510,"5,780.50 "
Department of Health,NHS Sheffield CCG,31/07/2018,C&M-GMS Cost of Drugs -Prescribing,LOCAL ENHANCED SERVICES,UPPERTHORPE MEDICAL CENTRE,23187512,"2,145.76 "
Department of Health,NHS Sheffield CCG,31/07/2018,C&M-GMS Global Sum,PRC DELEGATED CO-COMMISSIONING,UPPERTHORPE MEDICAL CENTRE,23187512,"79,008.77 "
Department of Health,NHS Sheffield CCG,31/07/2018,C&M-GMS MPIG Correction Factor,PRC DELEGATED CO-COMMISSIONING,UPPERTHORPE MEDICAL CENTRE,23187512,"1,325.74 "
Department of Health,NHS Sheffield CCG,31/07/2018,C&M-GMS Prem Notional Rent,PRC DELEGATED CO-COMMISSIONING,UPPERTHORPE MEDICAL CENTRE,23187512,"2,497.83 "
Department of Health,NHS Sheffield CCG,31/07/2018,C&M-GMS Prem Rates,PRC DELEGATED CO-COMMISSIONING,UPPERTHORPE MEDICAL CENTRE,23187512,"2,338.00 "
Department of Health,NHS Sheffield CCG,31/07/2018,C&M-GMS Prem Water Rates,PRC DELEGATED CO-COMMISSIONING,UPPERTHORPE MEDICAL CENTRE,23187512,353.23 
Department of Health,NHS Sheffield CCG,31/07/2018,C&M-GMS Prof Fees Prescribing,PRC DELEGATED CO-COMMISSIONING,UPPERTHORPE MEDICAL CENTRE,23187512,273.70 
Department of Health,NHS Sheffield CCG,31/07/2018,C&M-GMS QOF Aspiration,PRC DELEGATED CO-COMMISSIONING,UPPERTHORPE MEDICAL CENTRE,23187512,"8,681.64 "
Department of Health,NHS Sheffield CCG,31/07/2018,C&M-GMS Cost of Drugs -Prescribing,LOCAL ENHANCED SERVICES,WHITE HOUSE SURGERY SHEFFIELD,23187516,"1,484.73 "
Department of Health,NHS Sheffield CCG,31/07/2018,C&M-GMS Global Sum,PRC DELEGATED CO-COMMISSIONING,WHITE HOUSE SURGERY SHEFFIELD,23187516,"48,816.24 "
Department of Health,NHS Sheffield CCG,31/07/2018,C&M-GMS MPIG Correction Factor,PRC DELEGATED CO-COMMISSIONING,WHITE HOUSE SURGERY SHEFFIELD,23187516,"1,391.30 "
Department of Health,NHS Sheffield CCG,31/07/2018,C&M-GMS Prem Notional Rent,PRC DELEGATED CO-COMMISSIONING,WHITE HOUSE SURGERY SHEFFIELD,23187516,"9,104.17 "
Department of Health,NHS Sheffield CCG,31/07/2018,C&M-GMS Prem Rates,PRC DELEGATED CO-COMMISSIONING,WHITE HOUSE SURGERY SHEFFIELD,23187516,"6,637.01 "
Department of Health,NHS Sheffield CCG,31/07/2018,C&M-GMS Prof Fees Prescribing,PRC DELEGATED CO-COMMISSIONING,WHITE HOUSE SURGERY SHEFFIELD,23187516,391.00 
Department of Health,NHS Sheffield CCG,31/07/2018,C&M-GMS QOF Aspiration,PRC DELEGATED CO-COMMISSIONING,WHITE HOUSE SURGERY SHEFFIELD,23187516,"6,017.46 "
Department of Health,NHS Sheffield CCG,31/07/2018,C&M-GMS Cost of Drugs -Prescribing,LOCAL ENHANCED SERVICES,WALKLEY HOUSE MEDICAL CENTRE,23187518,688.47 
Department of Health,NHS Sheffield CCG,31/07/2018,C&M-GMS Global Sum,PRC DELEGATED CO-COMMISSIONING,WALKLEY HOUSE MEDICAL CENTRE,23187518,"82,768.51 "
Department of Health,NHS Sheffield CCG,31/07/2018,C&M-GMS Prem Notional Rent,PRC DELEGATED CO-COMMISSIONING,WALKLEY HOUSE MEDICAL CENTRE,23187518,"5,635.50 "
Department of Health,NHS Sheffield CCG,31/07/2018,C&M-GMS Prem Rates,PRC DELEGATED CO-COMMISSIONING,WALKLEY HOUSE MEDICAL CENTRE,23187518,"1,779.00 "
Department of Health,NHS Sheffield CCG,31/07/2018,C&M-GMS Prem Water Rates,PRC DELEGATED CO-COMMISSIONING,WALKLEY HOUSE MEDICAL CENTRE,23187518,145.24 
Department of Health,NHS Sheffield CCG,31/07/2018,C&M-GMS Prof Fees Prescribing,PRC DELEGATED CO-COMMISSIONING,WALKLEY HOUSE MEDICAL CENTRE,23187518,92.00 
Department of Health,NHS Sheffield CCG,31/07/2018,C&M-GMS QOF Aspiration,PRC DELEGATED CO-COMMISSIONING,WALKLEY HOUSE MEDICAL CENTRE,23187518,"8,592.68 "
Department of Health,NHS Sheffield CCG,31/07/2018,C&M-GMS Cost of Drugs -Prescribing,LOCAL ENHANCED SERVICES,FLOWERS HEALTH CENTRE,23187521,"1,198.72 "
Department of Health,NHS Sheffield CCG,31/07/2018,C&M-GMS Global Sum,PRC DELEGATED CO-COMMISSIONING,FLOWERS HEALTH CENTRE,23187521,"35,356.34 "
Department of Health,NHS Sheffield CCG,31/07/2018,C&M-GMS MPIG Correction Factor,PRC DELEGATED CO-COMMISSIONING,FLOWERS HEALTH CENTRE,23187521,"1,476.31 "
Department of Health,NHS Sheffield CCG,31/07/2018,C&M-GMS Prem Healthcentre Rent,PRC DELEGATED CO-COMMISSIONING,FLOWERS HEALTH CENTRE,23187521,"33,513.30 "
Department of Health,NHS Sheffield CCG,31/07/2018,C&M-GMS Prof Fees Prescribing,PRC DELEGATED CO-COMMISSIONING,FLOWERS HEALTH CENTRE,23187521,133.40 
Department of Health,NHS Sheffield CCG,31/07/2018,C&M-GMS QOF Aspiration,PRC DELEGATED CO-COMMISSIONING,FLOWERS HEALTH CENTRE,23187521,"4,241.34 "
Department of Health,NHS Sheffield CCG,31/07/2018,C&M-GMS Global Sum,PRC DELEGATED CO-COMMISSIONING,HAROLD STREET MEDICAL CENTRE,23203440,"22,106.06 "
Department of Health,NHS Sheffield CCG,31/07/2018,C&M-GMS PCO Other,PRC DELEGATED CO-COMMISSIONING,HAROLD STREET MEDICAL CENTRE,23203440,276.22 
Department of Health,NHS Sheffield CCG,31/07/2018,C&M-GMS Prem Notional Rent,PRC DELEGATED CO-COMMISSIONING,HAROLD STREET MEDICAL CENTRE,23203440,"4,675.00 "
Department of Health,NHS Sheffield CCG,31/07/2018,C&M-GMS QOF Aspiration,PRC DELEGATED CO-COMMISSIONING,HAROLD STREET MEDICAL CENTRE,23203440,"2,464.80 "
Department of Health,NHS Sheffield CCG,31/07/2018,C&M-GMS Cost of Drugs -Prescribing,LOCAL ENHANCED SERVICES,MILL ROAD SURGERY SHEFFIELD,23203444,"1,301.88 "
Department of Health,NHS Sheffield CCG,31/07/2018,C&M-GMS Global Sum,PRC DELEGATED CO-COMMISSIONING,MILL ROAD SURGERY SHEFFIELD,23203444,"39,796.31 "
Department of Health,NHS Sheffield CCG,31/07/2018,C&M-GMS MPIG Correction Factor,PRC DELEGATED CO-COMMISSIONING,MILL ROAD SURGERY SHEFFIELD,23203444,122.04 
Department of Health,NHS Sheffield CCG,31/07/2018,C&M-GMS PCO Other,PRC DELEGATED CO-COMMISSIONING,MILL ROAD SURGERY SHEFFIELD,23203444,389.44 
Department of Health,NHS Sheffield CCG,31/07/2018,C&M-GMS Prem Notional Rent,PRC DELEGATED CO-COMMISSIONING,MILL ROAD SURGERY SHEFFIELD,23203444,"4,593.33 "
Department of Health,NHS Sheffield CCG,31/07/2018,C&M-GMS Prem Rates,PRC DELEGATED CO-COMMISSIONING,MILL ROAD SURGERY SHEFFIELD,23203444,972.00 
Department of Health,NHS Sheffield CCG,31/07/2018,C&M-GMS Prof Fees Prescribing,PRC DELEGATED CO-COMMISSIONING,MILL ROAD SURGERY SHEFFIELD,23203444,163.30 
Department of Health,NHS Sheffield CCG,31/07/2018,C&M-GMS QOF Aspiration,PRC DELEGATED CO-COMMISSIONING,MILL ROAD SURGERY SHEFFIELD,23203444,"4,960.33 "
Department of Health,NHS Sheffield CCG,31/07/2018,Voids and Subsidies,RECHARGES NHS PROPERTY SERVICES LTD,NHS PROPERTY SERVICES LTD,23210588,"57,567.93 "
Department of Health,NHS Sheffield CCG,31/07/2018,Voids and Subsidies,PRC DELEGATED CO-COMMISSIONING,COMMUNITY HEALTH PARTNERSHIPS LTD,23210590,"20,929.47 "
Department of Health,NHS Sheffield CCG,31/07/2018,Voids and Subsidies,RECHARGES NHS PROPERTY SERVICES LTD,COMMUNITY HEALTH PARTNERSHIPS LTD,23210590,"112,472.32 "
Department of Health,NHS Sheffield CCG,31/07/2018,Voids and Subsidies,RECHARGES NHS PROPERTY SERVICES LTD,NHS PROPERTY SERVICES LTD,23210610,"57,567.93 "
Department of Health,NHS Sheffield CCG,31/07/2018,C&M-PMS Practice Transformational Support,LOCAL ENHANCED SERVICES,FOUNDRY MEDICAL GROUP,23210625,"45,000.00 "
Department of Health,NHS Sheffield CCG,31/07/2018,Voids and Subsidies,RECHARGES NHS PROPERTY SERVICES LTD,NHS PROPERTY SERVICES LTD,23229048,"36,996.69 "
Department of Health,NHS Sheffield CCG,31/07/2018,Voids and Subsidies,PRC DELEGATED CO-COMMISSIONING,COMMUNITY HEALTH PARTNERSHIPS LTD,23229097,"20,929.47 "
Department of Health,NHS Sheffield CCG,31/07/2018,Voids and Subsidies,RECHARGES NHS PROPERTY SERVICES LTD,COMMUNITY HEALTH PARTNERSHIPS LTD,23229097,"113,575.56 "
Department of Health,NHS Sheffield CCG,31/07/2018,Clinical&Medical-Independent Sector,NCAS/OATS,SPAMEDICA LTD,23248051,"57,637.84 "
Department of Health,NHS Sheffield CCG,31/07/2018,Clinical&Medical-Independent Sector,NCAS/OATS,SPAMEDICA LTD,23248073,"71,913.08 "
Department of Health,NHS Sheffield CCG,31/07/2018,Clinical&Medical-Independent Sector,NCAS/OATS,SPAMEDICA LTD,23248159,"72,346.93 "
Department of Health,NHS Sheffield CCG,31/07/2018,Clinical&Medical-Voluntary Sector,ACUTE CHILDRENS SERVICES,SOUTH YORKSHIRE EATING DISORDERS ASSOCIATION,23271624,"45,000.00 "
